{"text_format":"1","workbook":"xlsx","n_sheets":1,"sheets":["ADA CONSTRUCTION NOV 2020 CAA"],"not_rendered":{"charts":1,"images":0,"macros":1,"external_links":1,"defined_names":0,"comments":2,"pivot_tables":0},"unopened":[],"bounds":{"document_bytes":16777216,"sheet_cells":100000,"rows_first":2000,"rows_last":500,"rows_between":2000,"halvings":0,"cell_chars":16384,"cell_head_chars":4096},"cells_cut":0,"cells_raw":0,"read":"whole","date_system":"1900"}

{"sheet":"ADA CONSTRUCTION NOV 2020 CAA","index":0,"n_rows":316,"n_cols":10,"rows_kept":316,"cut":false,"hidden":false,"merged":[[3,2,3,4],[3,5,3,7],[4,2,4,4],[4,5,4,7]]}
["DEPARTMENT OF TRANSPORTATION - CALTRANS"]
["DBE Commitment at Award (CAA) on Federally Funded Major Construction Contracts - October 1, 2020 - August 31, 2021"]
[]
["Total Award Amount Year-to-Date (YTD)",null,"Total DBE Commitment Amount YTD",null,null,"Total Prime Contracts Awarded YTD"]
[1532557180.7200003,null,{"$f":"SUM(C7:C18)","v":243025084.49000001},null,null,{"$f":"SUM(C282:C313,I282:I302,F282:F313)","v":142}]
["Groups",null,"Commitment Dollars YTD","Firms YTD","Contracts YTD","% of Contracts","% of DBE $","% of Total $"]
["Hispanic American Male",null,{"$f":"SUMIF(D67:D138,\"m\", C67:C138)","v":68083519.350000009},{"$f":"COUNTIF(D67:D138,\"M\")","v":51},{"$f":"SUMIF(D67:D138,\"M\",E67:E138)","v":163},{"$f":"E7/E20","v":0.24219910846953938},{"$f":"C7/C5","v":0.28015017253415053},{"$f":"C7/A5","v":4.4424782452824468E-2}]
["Hispanic American Female",null,{"$f":"SUMIF(D67:D138,\"F\", C67:C138)","v":23605852.210000001},{"$f":"COUNTIF(D67:D138,\"F\")","v":17},{"$f":"SUMIF(D67:D138,\"F\",E67:E138)","v":99},{"$f":"E8/E20","v":0.14710252600297177},{"$f":"C8/C5","v":9.7133397811744543E-2},{"$f":"C8/A5","v":1.5402917755349197E-2}]
["African American Male",null,{"$f":"SUMIF(D160:D174,\"m\", C160:C174)","v":1708723},{"$f":"COUNTIF(D160:D174,\"M\")","v":8},{"$f":"SUMIF(D160:D174,\"M\",E160:E174)","v":14},{"$f":"E9/E20","v":2.0802377414561663E-2},{"$f":"C9/C5","v":7.031056088657838E-3},{"$f":"C9/A5","v":1.1149489373031005E-3}]
["African American Female",null,{"$f":"SUMIF(D160:D174,\"F\", C160:C174)","v":5540053.2800000003},{"$f":"COUNTIF(D160:D174,\"F\")","v":5},{"$f":"SUMIF(D160:D174,\"F\",E160:E174)","v":19},{"$f":"E10/E20","v":2.8231797919762259E-2},{"$f":"C10/C5","v":2.2796219952463229E-2},{"$f":"C10/A5","v":3.6149080436902624E-3}]
["Asian Pacific Male",null,{"$f":"SUMIF(D196:D213,\"m\", C196:C213)","v":16967513.789999999},{"$f":"COUNTIF(D196:D213,\"M\")","v":10},{"$f":"SUMIF(D196:D213,\"M\",E196:E213)","v":47},{"$f":"E11/E20","v":6.9836552748885589E-2},{"$f":"C11/C5","v":6.9817952437326192E-2},{"$f":"C11/A5","v":1.1071374042976071E-2}]
["Asian Pacific Female",null,{"$f":"SUMIF(D196:D213,\"F\", C196:C213)","v":8870006.0899999999},{"$f":"COUNTIF(D196:D213,\"F\")","v":7},{"$f":"SUMIF(D196:D213,\"F\",E196:E213)","v":27},{"$f":"E12/E20","v":4.0118870728083213E-2},{"$f":"C12/C5","v":3.6498315013917759E-2},{"$f":"C12/A5","v":5.7877162441879286E-3}]
["Subcontinent Asian Male",null,{"$f":"SUMIF(D178:D193,\"m\", C178:C193)","v":16001885.069999998},{"$f":"COUNTIF(D178:D193,\"M\")","v":12},{"$f":"SUMIF(D178:D193,\"M\",E178:E193)","v":35},{"$f":"E13/E20","v":5.2005943536404163E-2},{"$f":"C13/C5","v":6.5844581861089505E-2},{"$f":"C13/A5","v":1.0441297245746004E-2}]
["Subcontinent Asian Female",null,{"$f":"SUMIF(D178:D193,\"F\", C178:C193)","v":0},{"$f":"COUNTIF(D178:D193,\"F\")","v":0},{"$f":"SUMIF(D178:D193,\"F\",E178:E193)","v":0},{"$f":"E14/E20","v":0},{"$f":"C14/C5","v":0},{"$f":"C14/A5","v":0}]
["Native American Male",null,{"$f":"SUMIF(D141:D157,\"m\", C141:C157)","v":25604253.419999998},{"$f":"COUNTIF(D141:D157,\"M\")","v":12},{"$f":"SUMIF(D141:D157,\"M\",E141:E157)","v":49},{"$f":"E15/E20","v":7.280832095096583E-2},{"$f":"C15/C5","v":0.10535642225464821},{"$f":"C15/A5","v":1.6706882941862591E-2}]
["Native American Female",null,{"$f":"SUMIF(D141:D157,\"F\", C141:C157)","v":2604352},{"$f":"COUNTIF(D141:D157,\"F\")","v":4},{"$f":"SUMIF(D141:D157,\"F\",E141:E157)","v":6},{"$f":"E16/E20","v":8.9153046062407128E-3},{"$f":"C16/C5","v":1.0716391706911077E-2},{"$f":"C16/A5","v":1.6993506231046251E-3}]
["Non Minority Women",null,{"$f":"SUMIF(D222:D276,\"F\", C222:C276)","v":73943381.280000016},{"$f":"COUNTIF(D222:D276,\"F\")","v":53},{"$f":"SUMIF(D222:D276,\"F\",E222:E276)","v":212},{"$f":"E17/E20","v":0.31500742942050519},{"$f":"C17/C5","v":0.30426234162277449},{"$f":"C17/A5","v":4.824836698442872E-2}]
["Other Men",null,{"$f":"SUMIF(D217:D219,\"m\", C217:C219)","v":95545},{"$f":"COUNTIF(D217:D219,\"M\")","v":1},{"$f":"SUMIF(D217:D219,\"M\",E217:E219)","v":2},{"$f":"E18/E20","v":2.9717682020802376E-3},{"$f":"C18/C5","v":3.9314871631669564E-4},{"$f":"C18/A5","v":6.2343513966058118E-5}]
[null,null,null,null,null,{"$f":"E19/E20","v":0},{"$f":"C19/C5","v":0},{"$f":"C19/A5","v":0}]
["Total  ",null,null,{"$f":"SUM(D7:D19)","v":180},{"$f":"SUM(E7:E19)","v":673}]
["Total Primes Contractors",null,{"$f":"F5","v":142}]
[]
["Yellow = DBEs",null,"Green = Trucking",{"$f":"COUNTIF(B67:B277,43)","v":24},{"$f":"SUM(SUMIF(B66:B138,\"43\",C66:C138),SUMIF(B140:B219,\"43\",C140:C219),SUMIF(B221:B277,\"43\",C221:C277))","v":30430353.620000001},{"$f":"E23/C5","v":0.12521486695029685}]
["Red = Prime Contractor",null,"Blue = Supplier",{"$f":"COUNTIF(B67:B277,33)","v":27},{"$f":"SUM(SUMIF(B67:B138,\"33\",C67:C138),SUMIF(B141:B219,\"33\",C141:C219),SUMIF(B222:B277,\"33\",C222:C277))","v":44931971.319999993},{"$f":"E24/C5","v":0.18488614627700645}]
["Red Italic = DBE firm as Prime",null,"White = Other",{"$f":"COUNTIF(B67:B277,-4142)","v":129},{"$f":"C5-(E23+E24)","v":167662759.55000001},{"$f":"E25/C5","v":0.68989898677269668}]
["BOLD = women"]
["* = Used both as Trucking & Supplier"]
[]
[]
[]
[]
[]
[]
[]
[]
[]
[]
[]
[]
[]
[]
[]
[]
[]
[]
[]
[]
[]
[]
[]
[]
[]
[]
[]
[]
[]
[]
[]
[]
[]
[]
[]
[]
[]
[]
["Hispanic American","Column1","Dollars","M/F","Count of Contracts","Contract Numbers","Count of Primes","Prime names","Districts"]
["A & M CONSULTING ENGINEERS",-4142,{"$f":"'[1]Construction Worksheet'!G12","v":136110},"M",7,{"$f":"FetchComment(E67)","v":"04-2G4604\n10-0X5204\n01-0B6204\n03-4F1714\n06-0U4204\n04-1J9704\n03-2H2404"},6,{"$f":"FetchComment(G67)","v":"CALIFORNIA HIGHWAY CONSTRUCTION GROUP INC\nGEORGE REED INC\nFBD VANGUARD CONSTRUCTION INC\nSECURITY PAVING COMPANY INC\nGranite Rock\nLamon Construction\n"},"1,3,4,6,10"]
["ABSL CONSTRUCTION",-4142,{"$f":"'[1]Construction Worksheet'!G40","v":1930524},"M",21,{"$f":"FetchComment(E68)","v":"05-1H0604\n06-0X0404\n01-0B6204\n01-0G33U4\n03-0H4604\n10-1E5314\n04-269804\n06-0Q9204\n04-0J5304\n10-1C1704\n04-2A3324\n04-2J7204\n07-291404\n04-0J5604\n04-2K8404\n04-1J9704\n06-0U5204\n08-0E33U4\n01-0H4604\n05-1K1304\n06-0U79U4"},12,{"$f":"FetchComment(G68)","v":"TEICHERT AND SON\nGRANITE CONSTRUCTION\nCALIFORNIA HIGHWAY CONSTRUCTION GROUP\nO.C. JONES & SONS INC\nMYERS & SONS CONSTRUCTION\nFBD VANGUARD CONSTRUCTION\nGRIFFITH-ATKINSON JV\nBAY CITIES PAVING & GRADING INC\nGORDON N BALL INC\nSTACY AND WITBECK INC\nGranite Rock\nAMES Construction"},"1,3,4,5,6,7,8,10"]
["ACCURATE SAWCUTTING INC",-4142,{"$f":"'[1]Construction Worksheet'!C8","v":18240},"F",1,{"$f":"FetchComment(E69)","v":"10-0X5204"},1,{"$f":"FetchComment(G69)","v":"GEORGE REED"},10]
["Advantage Demolition and Grading, Inc",-4142,{"$f":"'[1]Construction Worksheet'!G44","v":1218410},"M",1,{"$f":"FetchComment(E70)","v":"Suyat, Christian@DOT:\n07-293604"},1,{"$f":"FetchComment(G70)","v":"Suyat, Christian@DOT:\nORTIZ ENTERPRISES, INC.           "},7]
["AERO-ENVIRONMENTAL CONSULTING",-4142,{"$f":"'[1]Construction Worksheet'!G56","v":38560},"M",2,{"$f":"FetchComment(E71)","v":"01-0F4704\n04-2A3324"},2,{"$f":"FetchComment(G71)","v":"MERCER FRASER COMPANY\nBAY CITIES PAVING & GRADING INC"},"1,4"]
["Alfaro Communications Construction",-4142,{"$f":"'[1]Construction Worksheet'!G60","v":2632527.16},"M",1,{"$f":"FetchComment(E72)","v":"Suyat, Christian@DOT:\n12-0Q3104"},1,{"$f":"FetchComment(G72)","v":"Suyat, Christian@DOT:\nAlfaro Communications Construction"},12]
["ALVAREZ AND SHAW INC",-4142,{"$f":"'[1]Construction Worksheet'!G65","v":155160},"M",1,{"$f":"FetchComment(E73)","v":"11-427504"},1,{"$f":"FetchComment(G73)","v":"HMS CONSTRUCTION INC"},11]
["ARAGON GEOTECHNICAL",-4142,{"$f":"'[1]Construction Worksheet'!G72","v":74980},"M",1,{"$f":"FetchComment(E74)","v":"06-0U1004"},1,{"$f":"FetchComment(G74)","v":"GRANITE CONSTRUCTION COMPANY"},6]
["AUSTIN ENTERPRISE",-4142,{"$f":"'[1]Construction Worksheet'!C26","v":2784220.53},"F",14,{"$f":"FetchComment(E75)","v":"05-1F4904\n05-1H0604\n10-1C2804\n04-3J7004\n05-1F5004\n07-302404\n10-0L8704\n04-269804\n10-1C5004\n10-1C1704\n06-0U5204\n04-4G2104\n05-1J4704\n06-0U79U4"},8,{"$f":"FetchComment(G75)","v":"SOUZA ENGINEERING CONTRACTING\nTEICHERT AND SON INC\nSECURITY PAVING COMPANY\nFBD VANGUARD CONSTRUCTION INC\nCALPORTLAND CONSTRUCTION\nGRANITE CONSTRUCTION COMPANY\nGORDON N.BALL,INC.\nFEC FUTURE CONTRACTORS AND     ENGINEERS, INC."},"4,5,6,7,10"]
["Bellagio Construction",-4142,{"$f":"'[1]Construction Worksheet'!G78","v":59933},"M",1,{"$f":"FetchComment(E76)","v":"Suyat, Christian@DOT:\n06-0T3504"},1,{"$f":"FetchComment(G76)","v":"Suyat, Christian@DOT:\nCAL VALLEY CONSTRUCTION, INC."},6]
["C & N REINFORCING INC",-4142,{"$f":"'[1]Construction Worksheet'!G91","v":5038799.01},"M",9,{"$f":"FetchComment(E77)","v":"01-0G33U4\n04-160304\n04-269804\n04-0J5304\n10-1C1704\n03-3F5604\n04-2A3324\n04-0J5604\n04-2K8404"},7,{"$f":"FetchComment(G77)","v":"O.C. JONES & SONS INC\nVIKING CONSTRUCTION COMPANY\nFBD VANGUARD CONSTRUCTION\nTEICHERT & SON INC\nCALIFORNIA ENGINEERING CONTRACTING\nBAY CITIES PAVING & GRADING\nMYERS & SONS CONSTRUCTION INC"},"1,3,4,10"]
["CALI CONSTRUCTION",-4142,{"$f":"'[1]Construction Worksheet'!G99","v":1829495},"M",4,{"$f":"FetchComment(E78)","v":"11-418104\n11-424704\n11-412204\n11-4116U4"},2,{"$f":"FetchComment(G78)","v":"PAL GENERAL ENGINEERING\nDESILVA GATES CONSTRUCTION"},11]
["CENTRAL COAST TRAFFIC SAFETY",-4142,{"$f":"'[1]Construction Worksheet'!G106","v":166175},"M",4,{"$f":"FetchComment(E79)","v":"05-1J7104\n05-1C4204\n05-1K1004\n05-1J4704"},4,{"$f":"FetchComment(G79)","v":"PAPICH CONSTRUCTION COMPANY\nCERTIFIED COATINGS COMPANY\nLee Wilcon Electric Company, Inc\nFEC FUTURE CONTRACTORS AND     ENGINEERS, INC.                    "},5]
["CHAVEZ TRUCKING",33,{"$f":"'[1]Construction Worksheet'!C35","v":828351.4},"F",4,{"$f":"FetchComment(E80)","v":"10-1C2804\n10-1E5314\n04-2K8404\n03-2H6304"},3,{"$f":"FetchComment(G80)","v":"SECURITY PAVING COMPANY\nO.C. JONES & SONS INC\nGRANITE CONSTRUCTION COMPANY"},"3,4,10"]
["Clay Miranda Trucking",33,{"$f":"'[1]Construction Worksheet'!C40","v":74750.36},"F",1,{"$f":"FetchComment(E81)","v":"Suyat, Christian@DOT:\n06-0U79U4"},1,{"$f":"FetchComment(G81)","v":"Suyat, Christian@DOT:\nST. FRANCIS ELECTRIC, LLC   "},6]
["D.B. ELECTRIC INC",-4142,{"$f":"'[1]Construction Worksheet'!G116","v":1482214},"M",4,{"$f":"FetchComment(E82)","v":"12-0P0304\n12-0Q7904\n12-0M82U4\n07-2055C4"},3,{"$f":"FetchComment(G82)","v":"AMERICAN CIVIL CONSTRUCTORS WEST COAST\nSPECTRUM CONSTRUCTION GROUP INC\nPAL GENERAL ENGINEERING INC "},"7,12"]
["D.C. Drilling, Inc.",-4142,{"$f":"'[1]Construction Worksheet'!G120","v":58800},"M",1,{"$f":"FetchComment(E83)","v":"Suyat, Christian@DOT:\n08-0E33U4"},1,{"$f":"FetchComment(G83)","v":"Suyat, Christian@DOT:\nAmes Construction"},8]
["Don H Mahaffey",-4142,{"$f":"'[1]Construction Worksheet'!C45","v":631680},"F",1,{"$f":"FetchComment(E84)","v":"Suyat, Christian@DOT:\n04-4G2104"},1,{"$f":"FetchComment(G84)","v":"Suyat, Christian@DOT:\nGORDON N. BALL, INC.                      "},4]
["DOUBLE M TRUCKING",43,{"$f":"'[1]Construction Worksheet'!G136","v":3018550},"M",5,{"$f":"FetchComment(E85)","v":"01-0G33U4\n03-0H4604\n10-1E5314\n03-1F1504\n03-3H93U4\n"},5,{"$f":"FetchComment(G85)","v":"O.C. JONES & SONS INC\nMYERS & SONS CONSTRUCTION LLC\nDESILVA GATES CONSTRUCTION\nTeichert"},"1,3,10"]
["DRAGON MATERIAL TRANSPORT",33,{"$f":"'[1]Construction Worksheet'!C63","v":6382674.5199999996},"F",6,{"$f":"FetchComment(E86)","v":"01-0F6804\n10-1C5004\n04-2A3324\n06-0U4204\n04-1J9704\n03-2H1104"},5,{"$f":"FetchComment(G86)","v":"R. BROWN CONSTRUCTION COMPANY\nSECURITY PAVING COMPANY\nBAY CITIES PAVING & GRADING INC\nGranite Rock Construction Company\nO.C. Jones & Sons"},"1,3,4,6,10"]
["DRS REBAR INC",-4142,{"$f":"'[1]Construction Worksheet'!G154","v":199507.44999999998},"M",4,{"$f":"FetchComment(E87)","v":"07-317304\n07-260804\n12-0P94U4\n06-0U79U4"},4,{"$f":"FetchComment(G87)","v":"PETERSON-CHASE GENERAL ENGINEERING COMPANY\nPOWELL CONSTRUCTORS INC\nGRANITE CONSTRUCTION COMPANY\nGEORGE REED, INC.  "},"6,7,12"]
["EIGHTEEN TRUCKING",43,{"$f":"'[1]Construction Worksheet'!C69","v":41900},"F",2,{"$f":"FetchComment(E88)","v":"04-0J5604\n05-1K1304"},2,{"$f":"FetchComment(G88)","v":"MYERS & SONS CONSTRUCTION INC\nGORDON N. BALL, INC.        "},"4, 5"]
["ENDEMIC ENVIRONMENTAL",-4142,{"$f":"'[1]Construction Worksheet'!G166","v":335365},"M",7,{"$f":"FetchComment(E89)","v":"10-1C2804\n01-0G33U4\n05-1C4204\n10-1E5314\n01-0F4704\n03-1F1504\n08-0E33U4"},6,{"$f":"FetchComment(G89)","v":"SECURITY PAVING COMPANY\nCERTIFIED COATINGS COMPANY\nO.C. JONES & SONS INC\nMERCER FRASER COMPANY\nDESILVA GATES CONSTRUCTION\nAMES Construction"},"1,3,5,8,10"]
["FLASH TRAFFIC INC",-4142,{"$f":"'[1]Construction Worksheet'!C83","v":174307},"F",5,{"$f":"FetchComment(E90)","v":"05-1H0604\n10-0X5204\n07-317304\n04-4G2104\n10-462104"},5,{"$f":"FetchComment(G90)","v":"TEICHERT AND SON \nGEORGE REED INC\nPETERSON CHASE GENERAL ENGINEERING\nGORDON N. BALL, INC.\nST. FRANCIS ELECTRIC, LLC"},"4, 5,7,10"]
["FRANK MEDINA GENERAL",33,{"$f":"'[1]Construction Worksheet'!G174","v":671369},"M",3,{"$f":"FetchComment(E91)","v":"01-0G33U4\n03-1H8704Z\n04-2A3324"},3,{"$f":"FetchComment(G91)","v":"O.C. JONES & SONS INC\nAPEX FENCE CO INC\nBAY CITIES PAVING & GRADING INC"},"1,3,4"]
["Fresno Concrete",-4142,{"$f":"'[1]Construction Worksheet'!G178","v":94340},"M",1,{"$f":"FetchComment(E92)","v":"Vu, Can@DOT:\n06-0T3504"},1,{"$f":"FetchComment(G92)","v":"Suyat, Christian@DOT:\nCAL VALLEY CONSTRUCTION, INC."},6]
["FULL TRAFFIC MAINTENANCE INC",33,{"$f":"'[1]Construction Worksheet'!G187","v":1059542},"M",3,{"$f":"FetchComment(E93)","v":"07-317304\n07-293604\n08-0R5704"},3,{"$f":"FetchComment(G93)","v":"PETERSON-CHASE GENERAL ENGINEERING COMPANY\nORTIZ ENTERPRISES, INC.         \nEVERLEVEL HOLDINGS, LLC"},"7,8"]
["G & F CONCRETE CUTTING",-4142,{"$f":"'[1]Construction Worksheet'!C92","v":1332688.5},"F",4,{"$f":"FetchComment(E94)","v":"08-0G7904\n07-303904\n08-1C8504\n06-0Q9204"},3,{"$f":"FetchComment(G94)","v":"SELECT ELECTRIC\nSECURITY PAVING COMPANY\nGRANITE CONSTRUCTION COMPANY\nGRIFFITH-ATKINSON JV"},"6,7,8"]
["G & G ELECTRIC",-4142,{"$f":"'[1]Construction Worksheet'!G193","v":1263365},"M",3,{"$f":"FetchComment(E95)","v":"07-317304\n07-260804\n07-4V1004\n"},3,{"$f":"FetchComment(G95)","v":"PETERSON-CHASE GENERAL ENGINEERING\nPOWELL CONSTRUCTORS INC\nO'DONNELL CONSTRUCTION, INC."},7]
["GEOSTRUCTURAL ENGINEERING, INC.",-4142,{"$f":"'[1]Construction Worksheet'!G199","v":2825007},"M",3,{"$f":"FetchComment(E96)","v":"Suyat, Christian@DOT:\n08-0E33U4\n05-1K1304\n07-293604"},3,{"$f":"FetchComment(G96)","v":"Suyat, Christian@DOT:\nAmes Construction\nGORDON N. BALL, INC.                                                                                                       \nORTIZ ENTERPRISES, INC."},"5,7,8"]
["IBARRA GENERAL ENGINEERING",-4142,{"$f":"'[1]Construction Worksheet'!G218","v":381900},"M",1,{"$f":"FetchComment(E97)","v":"10-0Y6004"},1,{"$f":"FetchComment(G97)","v":"IBARRA GENERAL ENGINEERING"},10]
["IBARRA TRUCKING",43,{"$f":"'[1]Construction Worksheet'!G224","v":55184},"M",1,{"$f":"FetchComment(E98)","v":"04-0J5604"},1,{"$f":"FetchComment(G98)","v":"MYERS & SONS CONSTRUCTION INC"},4]
["HIGH LIGHT ELECTRIC INC",-4142,{"$f":"'[1]Construction Worksheet'!G212","v":4384165},"M",5,{"$f":"FetchComment(E99)","v":"10-0L8704\n10-1C1704\n06-360244\n09-366604\n05-1H8504"},4,{"$f":"FetchComment(G99)","v":"SECURITY PAVING COMPANY\nTEICHERT & SON INC\nEVERLEVEL HOLDINGS, LLC\nA.M. Concrete"},"5,6,10"]
["J TORRES COMPANY",-4142,{"$f":"'[1]Construction Worksheet'!C101","v":666294},"F",4,{"$f":"FetchComment(E100)","v":"07-291404\n08-0R5704\n03-2H1104\n05-1H8504"},4,{"$f":"FetchComment(G100)","v":"STACY & WITBECK INC\nEVERLEVEL HOLDINGS, LLC\nO.C. Jones & Sons\nA.M. Concrete"},"7,8"]
["JESMAR CONSTRUCTION",-4142,{"$f":"'[1]Construction Worksheet'!G231","v":300000},"M",1,{"$f":"FetchComment(E101)","v":"11-427504"},1,{"$f":"FetchComment(G101)","v":"HMS CONSTRUCTION INC"},11]
["KODIAK TRUCKING INC",43,{"$f":"'[1]Construction Worksheet'!G245","v":9127877},"M",5,{"$f":"FetchComment(E102)","v":"06-0X0404\n06-0Q9204\n06-0U4204\n06-360244\n05-1H8504\n"},4,{"$f":"FetchComment(G102)","v":"GRANITE CONSTRUCTION COMPANY\nGRIFFITH ATKINSON JV\nSECURITY PAVING COMPANY INC\nA.M. Concrete"},"5,6"]
["L.S. TRUCKING",43,{"$f":"'[1]Construction Worksheet'!G250","v":320730},"M",2,{"$f":"FetchComment(E103)","v":"04-2G4604\n01-0B6204"},1,{"$f":"FetchComment(G103)","v":"CALIFORNIA HIGHWAY CONSTRUCTION"},"1,4"]
["LOGISTICAL ENTERPRISES",-4142,{"$f":"'[1]Construction Worksheet'!C113","v":1859021.1500000001},"F",8,{"$f":"FetchComment(E104)","v":"06-0S5104\n06-0U4204\n10-0Y6004\n04-3K3104\n04-3K3304\n06-0T3504\n03-2H2404\n04-0J4704"},7,{"$f":"FetchComment(G104)","v":"GRIFFITH COMPANY\nSECURITY PAVING COMPANY INC\nIBARRA GENERAL ENGINEERING INC\nSt. Francis Electric, LLC\nCAL VALLEY CONSTRUCTION, INC.\nLamon Construction\nCAL STRIPE, INC.        "},"4,6,10"]
["LONE STAR LANDSCAPE",-4142,{"$f":"'[1]Construction Worksheet'!G256","v":62330},"M",2,{"$f":"FetchComment(E105)","v":"03-4F1714\n04-0J4704"},2,{"$f":"FetchComment(G105)","v":"FBD VANGUARD CONSTRUCITON INC\nSTANCE CONSTRUCTION COMPANY"},"3,4"]
["M & S ENVIRONMENTAL ",33,{"$f":"'[1]Construction Worksheet'!G265","v":320387.7},"M",3,{"$f":"FetchComment(E106)","v":"01-0C5704\n01-0F4704\n01-0F6804"},2,{"$f":"FetchComment(G106)","v":"MERCER FRASER COMPANY\nR BROWN CONSTRUCTION COMPANY"},1]
["MADERA CONCRETE COMPANY INC",-4142,{"$f":"'[1]Construction Worksheet'!G271","v":35302.5},"M",1,{"$f":"FetchComment(E107)","v":""},1,{"$f":"FetchComment(G107)","v":""},10]
["MANERI TRAFFIC CONTROL",-4142,{"$f":"'[1]Construction Worksheet'!C138","v":4138767.25},"F",17,{"$f":"FetchComment(E108)","v":"08-1L5904\n12-0S0404\n07-260804\n08-1E0604\n11-424704\n08-1F7304 \n11-427504\n07-288304\n07-4V0104\n08-0E33U4\n08-0E33U4\n12-0Q6504\n11-412204\n05-1H8504\n05-1K8504\n07-2055C4\n11-411404"},15,{"$f":"FetchComment(G108)","v":"POWELL CONSTRUCTION\nSULLY MILLER CONTRACTING COMPANY\nPAL GENERAL ENGINEERING INC\nSECURITY PAVING COMPANY\nHMS CONSTRUCTION INC\nCHUMO CONSTRUCTION INC\nYAKAR\nAMES Construction\nInternational Line Builders, Inc. dba ILB Electric\nBEADOR CONSTRUCTION COMPANY,   INC.                    \nAMERICAN CIVIL CONSTRUCTORS WEST COAST LLC\nA.M. Concrete, Inc.\nSPECTRUMCONSTRUCTIONGROUPINC. \nGRANITE CONSTRUCTION COMPANY\nST. FRANCIS ELECTRIC, LLC "},"3,5,7,8,11,12"]
["MANERI TRAFFIC CONTROL",-4142,{"$f":"'[1]Construction Worksheet'!G293","v":7041053.5999999996},"M",11,{"$f":"FetchComment(E109)","v":"08-0G7904\n08-1G0104\n11-429704\n07-302404\n07-303904\n08-1C8504\n11-419304\n12-0P0304\n12-0Q7904\n11-080284\n07-332604"},7,{"$f":"FetchComment(G109)","v":"SELECT ELECTRIC INC\nGRANITE CONSTRUCTION\nSECURITY PAVING COMPANY INC\nHAZARD CONSTRUCTION COMPANY\nAMERICAN CIVIL CONSTRUCTORS WEST COAST\nSPECTRUM CONSTRUCTION GROUP\nCHUMO CONSTRUCTION INC"},"7,8,11,12"]
["MIRANDA LOGISTICS ENTERPRISE LLC",-4142,{"$f":"'[1]Construction Worksheet'!G300","v":395382.4},"M",2,{"$f":"FetchComment(E110)","v":"Suyat, Christian@DOT:\n07-260804\n08-0E33U4"},2,{"$f":"FetchComment(G110)","v":"Suyat, Christian@DOT:\nAMES CONSTRUCTION, INC.\nPOWELL CONSTRUCTORS INC\n\n"},"7, 8"]
["MJD ENGINEERING",-4142,{"$f":"'[1]Construction Worksheet'!G308","v":1211319.0699999998},"M",2,{"$f":"FetchComment(E111)","v":"03-1F1504\n03-2H6304"},1,{"$f":"FetchComment(G111)","v":"DESILVA GATES CONSTRUCTION"},3]
["MONZON & SON ENTERPRISES INC",43,{"$f":"'[1]Construction Worksheet'!G320","v":3121120},"M",3,{"$f":"FetchComment(E112)","v":"08-1G0104\n07-303904\n08-1F7304"},2,{"$f":"FetchComment(G112)","v":"GRANITE CONSTRUCTION\nSECURITY PAVING COMPANY INC"},"7,8"]
["MORALES CONTRACTING SERVICES",-4142,{"$f":"'[1]Construction Worksheet'!G326","v":4171597.06},"M",1,{"$f":"FetchComment(E113)","v":"08-1C0824"},1,{"$f":"FetchComment(G113)","v":"FISHER SAND & GRAVEL CO"},8]
["PG CUTTING SERVICES",-4142,{"$f":"'[1]Construction Worksheet'!G354","v":1081009},"M",2,{"$f":"FetchComment(E114)","v":"08-1F1434\n08-0E33U4"},2,{"$f":"FetchComment(G114)","v":"MYERS & SONS CONSTRUCTION \nAMES construction"},8]
["PRE-CON PRODUCTS LTD",-4142,{"$f":"'[1]Construction Worksheet'!G365","v":480676.23},"M",3,{"$f":"FetchComment(E115)","v":"12-0P0304\n06-0U4204\n07-288304"},3,{"$f":"FetchComment(G115)","v":"AMERICAN CIVIL CONSTRUCTORS WEST COAST\nSECURITY PAVING COMPANY INC\nCHUMO CONSTRUCTION INC"},"6,7,12"]
["PREMIER VALLEY TRANSPORT",43,{"$f":"'[1]Construction Worksheet'!G373","v":910693},"M",2,{"$f":"FetchComment(E116)","v":"06-442554\n06-0U1004"},1,{"$f":"FetchComment(G116)","v":"GRANITE CONSTRUCTION COMPANY"},6]
["PTM General Engineering",-4142,{"$f":"'[1]Construction Worksheet'!C142","v":2619507.5},"F",1,{"$f":"FetchComment(E117)","v":"Suyat, Christian@DOT:\n04-3K3504"},1,{"$f":"FetchComment(G117)","v":"Suyat, Christian@DOT:\nPTM GENERAL ENGINEERING        SERVICES, INC.                "},4]
["QA CONSTRUCTORS",-4142,{"$f":"'[1]Construction Worksheet'!G380","v":482175},"M",1,{"$f":"FetchComment(E118)","v":"03-4F1714"},1,{"$f":"FetchComment(G118)","v":"FBD VANGUARD CONSTRUCTION INC"},3]
["QUALITY TRAFFIC CONTROL ",-4142,{"$f":"'[1]Construction Worksheet'!G386","v":29500},"M",1,{"$f":"FetchComment(E119)","v":"11-419304"},1,{"$f":"FetchComment(G119)","v":"HAZARD CONSTRUCTION COMPANY"},11]
["ROBINSON SWEEPING INC",43,{"$f":"'[1]Construction Worksheet'!C161","v":1048945},"F",8,{"$f":"FetchComment(E120)","v":"10-0X5204\n10-1C0404\n10-1C2804\n01-0C5704\n10-1C1704\n06-0U5204\n06-0U79U4\n10-462104"},6,{"$f":"FetchComment(G120)","v":"GEORGE REED INC\nTEICHERT & SON INC\nSECURITY PAVING COMPANY\nMERCER FRASER COMPANY\nGranite Construction\nDESILVA GATES CONSTRUCTION"},"1,6, 10"]
["Rock Structure Construction",-4142,{"$f":"'[1]Construction Worksheet'!G391","v":26350},"M",1,{"$f":"FetchComment(E121)","v":"Suyat, Christian@DOT:\n07-293604"},1,{"$f":"FetchComment(G121)","v":"Suyat, Christian@DOT:\nORTIZ ENTERPRISES, INC.       "},7]
["S & S TRUCKING",43,{"$f":"'[1]Construction Worksheet'!G415","v":659095},"M",3,{"$f":"FetchComment(E122)","v":"04-0J5304\n04-2A3324\n04-2J7204"},3,{"$f":"FetchComment(G122)","v":"O.C. JONES & SONS\nBAY CITIES PAVING & GRADING INC\nGORDON N BALL INC"},4]
["STATEWIDE STRIPES INC",-4142,{"$f":"'[1]Construction Worksheet'!G421","v":55164.5},"M",1,{"$f":"FetchComment(E123)","v":"11-418104"},1,{"$f":"FetchComment(G123)","v":"PAL GENERAL ENGINEERING"},11]
["SWPPQUEEN ",-4142,{"$f":"'[1]Construction Worksheet'!C166","v":174755},"F",2,{"$f":"FetchComment(E124)","v":"Suyat, Christian@DOT:\n03-3H93U4\n03-2H6304"},2,{"$f":"FetchComment(G124)","v":"Suyat, Christian@DOT:\nTeichert\nSTANCE CONSTRUCTION COMPANY "},3]
["T.D.W. CONSTRUCTION INC",-4142,{"$f":"'[1]Construction Worksheet'!G436","v":486483.65},"M",1,{"$f":"FetchComment(E125)","v":"04-160304"},1,{"$f":"FetchComment(G125)","v":"VIKING CONSTRUCTION COMPANY"},4]
["Terra West",-4142,{"$f":"'[1]Construction Worksheet'!G426","v":9000},"M",1,{"$f":"FetchComment(E126)","v":"Suyat, Christian@DOT:\n11-4116U4"},1,{"$f":"FetchComment(G126)","v":"Suyat, Christian@DOT:\nGRANITE CONSTRUCTION COMPANY "},11]
["TREESMITH ENTERPRISES INC",-4142,{"$f":"'[1]Construction Worksheet'!C173","v":284000},"F",1,{"$f":"FetchComment(E127)","v":"08-1C8504"},1,{"$f":"FetchComment(G127)","v":"GRANITE CONSTRUCTION COMPANY"},8]
["TULLY INC",-4142,{"$f":"'[1]Construction Worksheet'!C198","v":545750},"F",20,{"$f":"FetchComment(E128)","v":"01-0F4704\n03-0H4604\n07-317304\n10-1E5314\n10-1C5004\n04-0J5304\n10-1C1704\n03-1F1504\n03-2H0004\n04-2J7204\n04-0J5604\n04-2K8404\n04-4J4204\n04-2J8024\n01-0H4604\n04-4G2104\n05-1K1304\n03-0J8804\n03-2H1104\n04-0J4704"},13,{"$f":"FetchComment(G128)","v":"MERCER FRASER COMPANY\nMYERS & SONS CONSTRUCTION LLC\nPETERSON CHASE GENERAL ENGINEERING CONSTRUCTION INC\nO.C. JONES & SONS INC\nSECURITY PAVING COMPANY INC\nTEICHERT & SON INC\nDESILVA GATES CONSTRUCTION\nNEIL'S CONTROLLED BLASTING LP\nGORDON N BALL INC\nMAGGIORA & GHILOTTI INC\nF D Thomas, Inc.\nGRANITE CONSTRUCTION COMPANY\nPAL GENERAL ENGINEERING INC"},"1,3,4,5,7,10"]
["UNIVERSAL CONCRETE CONSTRUCTION",-4142,{"$f":"'[1]Construction Worksheet'!G443","v":1268692.02},"M",2,{"$f":"FetchComment(E129)","v":"08-1F7304\n08-0E33U4"},2,{"$f":"FetchComment(G129)","v":"SECURITY PAVING COMPANY INC\nAMES Construction, Inc."},8]
["VALDIVIA TRUCKING",43,{"$f":"'[1]Construction Worksheet'!G457","v":587390},"M",6,{"$f":"FetchComment(E130)","v":"01-0G33U4\n01-0G33U4\n04-0J5304\n04-2K8404\n04-4J4204\n01-0H4604"},3,{"$f":"FetchComment(G130)","v":"O.C. JONES & SONS INC\nMAGGIORA & GHILOTTI INC\nGRANITE CONSTRUCTION COMPANY"},"1,4"]
["Vintage Paving Company",-4142,{"$f":"'[1]Construction Worksheet'!G461","v":810500},"M",1,{"$f":"FetchComment(E131)","v":"Suyat, Christian@DOT:\n03-0J9004"},1,{"$f":"FetchComment(G131)","v":"Suyat, Christian@DOT:\nAMERICAN CIVIL CONSTRUCTORS WEST COAST LLC"},3]
["WEST PACIFIC CONCRETE",-4142,{"$f":"'[1]Construction Worksheet'!G469","v":247845},"M",1,{"$f":"FetchComment(E132)","v":"08-1E0604"},1,{"$f":"FetchComment(G132)","v":"SULLY MILLER CONTRACTING COMPANY"},8]
["WESTERN TRAFFIC SUPPLY",-4142,{"$f":"'[1]Construction Worksheet'!G481","v":4685815},"M",8,{"$f":"FetchComment(E133)","v":"04-269804\n04-2A3324\n04-2J7204\n06-0U4204\n04-0J5604\n04-1J9704\n04-2J8014\n04-0J4704"},8,{"$f":"FetchComment(G133)","v":"BAY CITIES PAVING & GRADING INC\nGORDON N BALL INC\nSECURITY PAVING COMPANY\nFBD VANGUARD CONSTRUCTION \nMYERS & SONS CONSTRUCTION LLC\nGranite Rock Company\nCertified Coatings Company\nST. FRANCIS ELECTRIC, LLC   "},"4,6"]
["ZABEL ENTERPRISES",43,{"$f":"'[1]Construction Worksheet'!G490","v":1046050},"M",3,{"$f":"FetchComment(E134)","v":"01-0C5704\n01-0F4704\n01-0C4504"},1,{"$f":"FetchComment(G134)","v":"MERCER-FRASER COMPANY"},1]
[]
[]
[]
[]
[]
["Native American","Column1","Dollars","M/F","Count of Contracts","Contract Numbers","Count of Primes","Prime names","Districts"]
["AGEE CONSTRUCTION CORPORATION",-4142,{"$f":"'[1]Construction Worksheet'!K8","v":125032},"F",1,{"$f":"FetchComment(E141)","v":"10-1J3004"},1,{"$f":"FetchComment(G141)","v":"AGEE CONSTRUCTION CORPORATION"},10]
["DIABLED AMERICAN VETERAN ",33,{"$f":"'[1]Construction Worksheet'!O12","v":1820337.3499999999},"M",6,{"$f":"FetchComment(E142)","v":"05-1J7104\n06-0X0404\n10-1C0404\n06-0Q9204\n06-0S5104\n06-0X5204"},5,{"$f":"FetchComment(G142)","v":"PAPICH CONSTRUCTION COMPANY\nGRANITE CONSTRUCTION\nTEICHERT & SON\nGRIFFITH-ATKINSON JV\nGRIFFITH COMPANY"},"5,6,10"]
["FDT STRUCTURAL SPECIALTIES",-4142,{"$f":"'[1]Construction Worksheet'!O17","v":310413},"M",1,{"$f":"FetchComment(E143)","v":"04-0J5304"},1,{"$f":"FetchComment(G143)","v":""},4]
["FORCE TRAFFIC CONTROL",-4142,{"$f":"'[1]Construction Worksheet'!O29","v":698000},"M",4,{"$f":"FetchComment(E144)","v":"10-0X5204\n10-1C0404\n06-0U1004\n10-462104"},3,{"$f":"FetchComment(G144)","v":"GEORGE REED INC\nTEICHERT & SON INC\nGRANITE CONSTRUCTION COMPANY"},"6,10"]
["G R SUNDBERG INC",-4142,{"$f":"'[1]Construction Worksheet'!O35","v":168696.7},"M",3,{"$f":"FetchComment(E145)","v":"01-0F6804\n01-0G33U4\n01-0H4604"},3,{"$f":"FetchComment(G145)","v":"R.BROWN CONSTRUCTION COMPANY INC\nO.C. JONES& SONS INC\nGRANITE CONSTRUCTION COMPANY"},1]
["GLOBAL TRANSLOADING",-4142,{"$f":"'[1]Construction Worksheet'!K14","v":640443},"F",3,{"$f":"FetchComment(E146)","v":"07-288304\n05-1J4704\n07-293604"},3,{"$f":"FetchComment(G146)","v":"CHUMO CONSTRUCTION INC\nFEC FUTURE CONTRACTORS AND     ENGINEERS, INC.                                                                             \nORTIZ ENTERPRISES, INC."},7]
["KRC SAFETY CO INC",33,{"$f":"'[1]Construction Worksheet'!O56","v":3162475},"M",14,{"$f":"FetchComment(E147)","v":"05-1J7104\n06-0X0404\n05-1F5004\n06-0Y0304\n03-0H7204\n03-1H8704\n04-0J5604\n04-3J0504\n05-1K8604\n06-0U0404\n10-1C3704\n06-0U5204\n09-367704\n10-1C7604"},12,{"$f":"FetchComment(G147)","v":"PAPICH CONSTRUCTION COMPANY\nGRANITE CONSTRUCTION COMPANY\nCALPORTLAND CONSTRUCTION\nBUSH ENGINEERING INC\nHIGHWAY SPECIALTY COMPANY INC\nAPEX FENCE CO INC\nMYERS & SONS CONSTRUCTION LLC\nTENNYSON ELECTRIC INC\nSPECIALIZED PAVEMENT MARKING INC\nMIDSTATE BARRIER\nDanny C. Hubbs construction, Inc.\nLee Wilson Electric Company, Inc"},"3,4,5,6,9,10"]
["MCCULLOUGH CONSTRUCTION INC",-4142,{"$f":"'[1]Construction Worksheet'!O62","v":12352680.4},"M",2,{"$f":"FetchComment(E148)","v":"02-4F2204\n01-0G2104"},1,{"$f":"FetchComment(G148)","v":"MCCULLOUGH CONSTRUCTION INC"},2]
["S.T. RHOADES CONSTRUCTION",-4142,{"$f":"'[1]Construction Worksheet'!O70","v":5873857},"M",3,{"$f":"FetchComment(E149)","v":"01-0C5704\n01-0C6604\n03-0H7204"},3,{"$f":"FetchComment(G149)","v":"MERCER FRASER COMPANY\nS.T. RHOADES CONSTRUCTION INC\nHIGHWAY SPECIALTY COMPANY INC"},"1,3"]
["SAM'S EQUIPMENT & SUPPLIES",33,{"$f":"'[1]Construction Worksheet'!O89","v":710881.97},"M",10,{"$f":"FetchComment(E150)","v":"10-1C2804\n01-0B6204\n01-0G33U4\n07-303904\n10-0L8704\n11-424604\n09-360704\n05-1K1004\n05-1J4704\n06-0U79U4"},8,{"$f":"FetchComment(G150)","v":"SECURITY PAVING COMPANY\nCALIFORNIA HIGHWAY CONSTRUCTION GROUP\nO.C. JONES AND SONS INC\nS & B ENGINEERING INC\nPOWELL CONSTRUCTORS INC\nLee Wilson Electric Company, Inc\nFEC FUTURE CONTRACTORS AND     ENGINEERS, INC.\nGRANITE CONSTRUCTION"},"1,5,6,7,9,10,11"]
["SHORE-TEK",-4142,{"$f":"'[1]Construction Worksheet'!O95","v":34468},"M",1,{"$f":"FetchComment(E151)","v":"05-1E0104\n"},1,{"$f":"FetchComment(G151)","v":"SPECIALTY CONSTRUCTION IN"},5]
["SKILLIE CONSTRUCTORS",-4142,{"$f":"'[1]Construction Worksheet'!K18","v":278621},"F",1,{"$f":"FetchComment(E152)","v":"Suyat, Christian@DOT:\n04-2J8024"},1,{"$f":"FetchComment(G152)","v":"Suyat, Christian@DOT:\nF D Thomas"},4]
["TOTAL TRAFFIC CONTROL ",33,{"$f":"'[1]Construction Worksheet'!O104","v":427344},"M",3,{"$f":"FetchComment(E153)","v":"04-3J7104\n10-0L8704\n04-2J8024"},3,{"$f":"FetchComment(G153)","v":"GRANITE ROCK COMPANY\nSECURITY PAVING COMPANY INC\nF D Thomas, Inc."},"4,10"]
["TRINITY VALLEY CONSULTING ",-4142,{"$f":"'[1]Construction Worksheet'!O111","v":25100},"M",1,{"$f":"FetchComment(E154)","v":"01-0F6804"},1,{"$f":"FetchComment(G154)","v":"R BROWN CONSTRUCTION COMPANY INC"},1]
["WEST COAST DRILLING",-4142,{"$f":"'[1]Construction Worksheet'!K23","v":1560256},"F",1,{"$f":"FetchComment(E155)","v":"09-360704"},1,{"$f":"FetchComment(G155)","v":"POWELL CONSTRUCTORS INC"},9]
["WILLOW HAWK INC",-4142,{"$f":"'[1]Construction Worksheet'!O116","v":20000},"M",1,{"$f":"FetchComment(E156)","v":"01-0F6804"},1,{"$f":"FetchComment(G156)","v":"R BROWN CONSTRUCTION COMPANY INC"},1]
[]
[]
["African American","Column1","Dollars","M/F","Count of Contracts","Contract Numbers","Count of Primes","Prime names","Districts"]
["ALLUVION BIOLOGICAL CONSULTING",-4142,{"$f":"'[1]Construction Worksheet'!W10","v":215330},"M",3,{"$f":"FetchComment(E160)","v":"03-0H4604\n09-360704\n03-3H93U4"},3,{"$f":"FetchComment(G160)","v":"MYERS & SONS CONSTRUCTION LLC\nPOWELL CONSTRUCTORS INC\nTeichert & Son"},"3,9"]
["American Traffic Barricade & Safety Company",-4142,{"$f":"'[1]Construction Worksheet'!W14","v":42575},"M",1,{"$f":"FetchComment(E161)","v":"Suyat, Christian@DOT:\n05-1J4704"},1,{"$f":"FetchComment(G161)","v":"Suyat, Christian@DOT:\nFEC FUTURE CONTRACTORS AND     ENGINEERS, INC.           "},5]
["APPIAN UDBE SWPPPS",-4142,{"$f":"'[1]Construction Worksheet'!S15","v":13150},"F",6,{"$f":"FetchComment(E162)","v":"01-0G4304\n06-0X0404\n01-0C4504\n06-0X5204\n04-4J4204\n05-1K1004"},6,{"$f":"FetchComment(G162)","v":"REGE CONSTRUCTION \nGRANITE CONSTRUCTION\nMERCER FRASER COMPANY\nGRIFFITH COMPANY\nMAGGIORA & GHILOTTI INC\nLee Wilson Electric Company, Inc."},"1,4,5,6"]
["BLACK DIAMOND ASPHALT INC",33,{"$f":"'[1]Construction Worksheet'!S31","v":5503689},"F",10,{"$f":"FetchComment(E163)","v":"08-1G0104\n10-0X5204\n10-1C0404\n01-0C5704\n01-0G33U4\n10-1C1704\n03-1F1504\n01-0H4604\n03-3H93U4\n10-462104"},6,{"$f":"FetchComment(G163)","v":"GRANITE CONSTRUCTION COMPANY\nGEORGE REED INC\nTEICHERT & SON INC\nMERCER-FRASER COMPANY\nO.C. JONES & SONS INC\nDESILVA GATES CONSTRUCTION"},"1,3,8,10"]
["CGO CONSTRUCTION",-4142,{"$f":"'[1]Construction Worksheet'!W19","v":142900},"M",2,{"$f":"FetchComment(E164)","v":"12-0P94U4\n08-1F7304"},2,{"$f":"FetchComment(G164)","v":"GRANITE CONSTRUCTION COMPANY\nSECURITY PAVING COMPANY INC"},"8,12"]
["DAVIDSON & MORRIS DBE SERVICES ",-4142,{"$f":"'[1]Construction Worksheet'!S36","v":2730},"F",1,{"$f":"FetchComment(E165)","v":"08-0G7904"},1,{"$f":"FetchComment(G165)","v":"SELECT ELECTRIC"},8]
["DOUBLE G'S SUPPLY INC",33,{"$f":"'[1]Construction Worksheet'!S41","v":2018.28},"F",1,{"$f":"FetchComment(E166)","v":"03-1H8404"},1,{"$f":"FetchComment(G166)","v":"GRANITE CONSTRUCTION COMPANY"},3]
["E-NOR INNOVATIONS INC",-4142,{"$f":"'[1]Construction Worksheet'!W29","v":677450},"M",3,{"$f":"FetchComment(E167)","v":"11-424604\n07-291404\n12-0P94U4"},3,{"$f":"FetchComment(G167)","v":"S & B ENGINEERING INC\nSTACY AND WITBECK INC\nGRANITE CONSTRUCTION COMPANY"},"7,11,12"]
["K & G CONCRETE PUMPING",-4142,{"$f":"'[1]Construction Worksheet'!W35","v":21840},"M",2,{"$f":"FetchComment(E168)","v":"04-2A3324\n04-4G2104"},2,{"$f":"FetchComment(G168)","v":"BAY CITIES PAVING & GRADING INC\nGORDON N. BALL, INC."},4]
["Marvella Steel Placers",-4142,{"$f":"'[1]Construction Worksheet'!S45","v":18466},"F",1,{"$f":"FetchComment(E169)","v":"Suyat, Christian@DOT:\n12-0S0404"},1,{"$f":"FetchComment(G169)","v":"Suyat, Christian@DOT:\nBEADOR CONSTRUCTION COMPANY,   INC."},12]
["PCA TRUCKING LLC",43,{"$f":"'[1]Construction Worksheet'!W41","v":461125},"M",1,{"$f":"FetchComment(E170)","v":"11-080284"},1,{"$f":"FetchComment(G170)","v":"SPECTRUM CONSTRUCTION"},11]
["Sierra Engineering & Environmental Services",-4142,{"$f":"'[1]Construction Worksheet'!W46","v":22895},"m",1,{"$f":"FetchComment(E171)","v":"Suyat, Christian@DOT:\n03-2H1104"},1,{"$f":"FetchComment(G171)","v":"Suyat, Christian@DOT:\nO.C. Jones & Sons"},3]
["WCS PROTECTION SERVICES",-4142,{"$f":"'[1]Construction Worksheet'!W54","v":124608},"M",1,{"$f":"FetchComment(E172)","v":"05-1C4204"},1,{"$f":"FetchComment(G172)","v":"CERTIFIED COATINGS COMPANY"},5]
[]
[]
[]
[]
["Sub Cont Asian","Column1","Dollars","M/F","Count of Contracts","Contract Numbers","Count of Primes","Prime names","Districts"]
["101 TRUCKING",43,{"$f":"'[1]Construction Worksheet'!AE7","v":37440},"M",1,{"$f":"FetchComment(E178)","v":"05-1H0604"},1,{"$f":"FetchComment(G178)","v":"TEICHERT AND SON"},5]
["ALL CITY TRUCKING",33,{"$f":"'[1]Construction Worksheet'!AE25","v":5846611.7999999998},"M",11,{"$f":"FetchComment(E179)","v":"10-1C2804\n10-0L8704\n04-4J7304\n04-269804\n10-1C5004\n04-0J5304\n04-4J3904\n04-2A3324\n05-1F9204\n04-2K8404\n04-3J0504"},7,{"$f":"FetchComment(G179)","v":"SECURITY PAVING COMPANY\nTEICHERT AND SON\nFBD VANGUARD CONSTRUCTION\nO.C. JONES & SONS INC\nBAY CITIES PAVING & GRADING\nDISNEY CONSTRUCTION INC\nTENNYSON ELECTRIC INC"},"4,5,10"]
["AMERICA PACIFIC CONSTRUCTION",-4142,{"$f":"'[1]Construction Worksheet'!AE30","v":145080},"M",1,{"$f":"FetchComment(E180)","v":"04-4J0804"},1,{"$f":"FetchComment(G180)","v":"AMERICAN PACIFIC CONSTRUCTION"},4]
["COMPREHENSIVE SECURITY SERVICES, INC.",-4142,{"$f":"'[1]Construction Worksheet'!AE34","v":270528},"M",1,{"$f":"FetchComment(E181)","v":"Suyat, Christian@DOT:\n04-2J8014"},1,{"$f":"FetchComment(G181)","v":"Suyat, Christian@DOT:\nCertified Coatings Company"},4]
["DESTINATION ANYWHERE INC",33,{"$f":"'[1]Construction Worksheet'!AE45","v":529363.55000000005},"M",4,{"$f":"FetchComment(E182)","v":"10-0X5204\n10-1C0404\n10-1C2804\n10-462104"},3,{"$f":"FetchComment(G182)","v":"GEORGE REED INC\nTEICHERT & SON INC\nSECURITY PAVING COMPANY\n"},10]
["DREAMBUILDER",-4142,{"$f":"'[1]Construction Worksheet'!AE55","v":6518079.7999999998},"M",3,{"$f":"FetchComment(E183)","v":"05-1G9904\n08-1G0004\n08-1J0204"},1,{"$f":"FetchComment(G183)","v":"DREAMBUILDER CONSTRUCITON"},"5,8"]
["Golden Apple Express, Inc",43,{"$f":"'[1]Construction Worksheet'!AE59","v":17000},"M",1,{"$f":"FetchComment(E184)","v":"Suyat, Christian@DOT:\n05-1K1304"},1,{"$f":"FetchComment(G184)","v":"Suyat, Christian@DOT:\nGORDON N. BALL, INC.              "},5]
["HEIR & SON CONSTRUCTION",-4142,{"$f":"'[1]Construction Worksheet'!AE66","v":6858.5},"M",1,{"$f":"FetchComment(E185)","v":"04-0J5604"},1,{"$f":"FetchComment(G185)","v":"MYERS  & SONS INC"},4]
["JASS BOYS TRUCK LINES",-4142,{"$f":"'[1]Construction Worksheet'!AE73","v":123500},"M",1,{"$f":"FetchComment(E186)","v":"04-2A3324"},1,{"$f":"FetchComment(G186)","v":"BAY CITIES PAVING & GRADING"},4]
["NAMAN TRUCKING",43,{"$f":"'[1]Construction Worksheet'!AE82","v":115830},"M",1,{"$f":"FetchComment(E187)","v":"05-1H0604"},1,{"$f":"FetchComment(G187)","v":"TEICHERT AND SON"},5]
["SEQUOIA CONSULTANT INC",-4142,{"$f":"'[1]Construction Worksheet'!AE95","v":2258893.42},"M",8,{"$f":"FetchComment(E188)","v":"08-1G0104\n0-302404\n11-419304\n06-0Q9204\n06-442554\n06-0U1004\n07-291404\n08-1C0824"},5,{"$f":"FetchComment(G188)","v":"GRANITE CONSTRUCTION COMPANY\nHAZARD CONSTRUCTION COMPANY\nGRIFFITH-ATKINSON JV\nSTACY AND WITBECK INC\nFISHER SAND & GRAVEL CO"},"6,7,8,11"]
["SHK HAULING INC",43,{"$f":"'[1]Construction Worksheet'!AE100","v":132700},"M",2,{"$f":"FetchComment(E189)","v":"10-1E5314\n03-1H8404"},2,{"$f":"FetchComment(G189)","v":"O.C. JONES & SONS INC\nGRANITE CONSTRUCTION"},"3,10"]
[]
[]
[]
[]
[]
["Asian Pacific","Column1","Dollars","M/F","Count of Contracts","Contract Numbers","Count of Primes","Prime names","Districts"]
["ACE FENCE COMPANY",33,{"$f":"'[1]Construction Worksheet'!AI15","v":3301651},"F",10,{"$f":"FetchComment(E196)","v":"08-1F1434\n06-0Q9204\n07-260804\n06-442554\n11-427504\n07-288304\n06-360244\n05-1J4704\n07-293604\n07-4V1004"},10,{"$f":"FetchComment(G196)","v":"MYERS & SONS CONSTRUCTION\nGRIFFITH-ATKINSON JV\nPOWELL CONSTRUCTORS INC\nGRANITE CONSTRUCTION COMPANY\nHMS CONSTRUCTION INC\nCHUMO CONSTRUCTION INC\nSecurity Paving Company, Inc.\nFEC FUTURE CONTRACTORS AND     ENGINEERS, INC\nORTIZ ENTERPRISES, INC.    \nO'DONNELL CONSTRUCTION, INC."},"5,6,7,8,11"]
["Apex Universal, Inc.",43,{"$f":"'[1]Construction Worksheet'!AM7","v":136787.44},"M",1,{"$f":"FetchComment(E197)","v":"Suyat, Christian@DOT:\n05-1K8504"},1,{"$f":"FetchComment(G197)","v":"Suyat, Christian@DOT:\nCAL STRIPE, INC.  "},5]
["BAY AREA LIGHTWORKS, INC.",-4142,{"$f":"'[1]Construction Worksheet'!AM11","v":1860050},"M",1,{"$f":"FetchComment(E198)","v":"Suyat, Christian@DOT:\n04-3J8904"},1,{"$f":"FetchComment(G198)","v":"Suyat, Christian@DOT:\nBay Area Light workds, Inc"},4]
["CALIFORNIA PROFESSIONAL",-4142,{"$f":"'[1]Construction Worksheet'!AM29","v":2581607},"M",7,{"$f":"FetchComment(E199)","v":"06-0Y0304\n08-1F1434\n06-442554\n12-0P94U4\n06-0U0404\n12-0S0404\n06-0U79U4"},4,{"$f":"FetchComment(G199)","v":"BUSH ENGINEERING INC\nMYERS & SONS CONSTRUCTION\nGRANITE CONSTRUCTION COMPANY\nBEADOR CONSTRUCTION COMPANY,   INC."},"5,6,8,12"]
["DIRT & AGGREGATE INTERCHANGE",-4142,{"$f":"'[1]Construction Worksheet'!AM42","v":2241425},"M",7,{"$f":"FetchComment(E200)","v":"01-0G4304\n10-1C2804\n01-0F4704\n04-160304\n04-4J3904\n04-3J0504\n01-0H4604\n"},7,{"$f":"FetchComment(G200)","v":"REGE CONSTRUCTION INC\nSECURITY PAVING COMPANY\nMERCER FRASER COMPANY\nVIKING CONSTRUCTION COMPANY\nFBD VANGUARD CONSTRUCTION INC\nTENNYSON ELECTRIC INC\nGRANITE CONSTRUCTION COMPANY"},"1,4,10"]
["G SOSA CONSTRUCTION",-4142,{"$f":"'[1]Construction Worksheet'!AM48","v":80320},"M",1,{"$f":"FetchComment(E201)","v":"05-1E0104"},1,{"$f":"FetchComment(G201)","v":"SPECIALTY CONSTRUCTION INC"},5]
["GLOBAL ROAD SEALING INC",-4142,{"$f":"'[1]Construction Worksheet'!AM67","v":3535942},"M",14,{"$f":"FetchComment(E202)","v":"06-0X0404\n11-429704\n07-302404\n07-303904\n11-419304\n08-1F1434\n06-0Q9204\n04-4J3904\n06-0U1004\n06-0U4204\n08-1G5504\n12-0Q6404\n08-0E33U4\n05-1N3504"},10,{"$f":"FetchComment(G202)","v":"GRANITE CONSTRUCTION COMPANY\nSELECT ELECTRIC INC\nSECURITY PAVING COMPANY\nHAZARD CONSTRUCTION COMPANY\nMYERS & SONS CONSTRUCTION\nGRIFFITH-ATKINSON JV\nFBD VANGUARD CONSTRUCTION INC\nRV CONCRETE \nCALPROMAX ENGINEERING INC\nAMES Construction, Inc."},"4,5,6,7,8,11,12"]
["J Myrah Environmental, LLC",-4142,{"$f":"'[1]Construction Worksheet'!AI20","v":2600},"F",1,{"$f":"FetchComment(E203)","v":"Suyat, Christian@DOT:\n03-2H6304"},1,{"$f":"FetchComment(G203)","v":"Suyat, Christian@DOT:\nSPECTRUM CONSTRUCTION GROUP,   INC. "},3]
["LEGACY REINFORCING STEEL LLC",-4142,{"$f":"'[1]Construction Worksheet'!AM74","v":2497115},"M",2,{"$f":"FetchComment(E204)","v":"08-1C0824\n07-293604"},2,{"$f":"FetchComment(G204)","v":"FISHER SAND & GRAVEL CO\nORTIZ ENTERPRISES, INC. "},"7,8"]
["LMS TRANSPORT",33,{"$f":"'[1]Construction Worksheet'!AM93","v":3012778.3499999996},"M",11,{"$f":"FetchComment(E205)","v":"08-1G0104\n05-1F5004\n07-302404\n11-419304\n12-0P0304\n08-1F1434\n06-442554\n06-0U1004\n08-1F7304\n08-0E33U4\n07-293604"},8,{"$f":"FetchComment(G205)","v":"GRANITE CONSTRUCTION COMPANY\nCALPORTLAND CONSTRUCTION\nHAZARD CONSTRUCTION COMPANY \nAMERICAN CIVIL CONSTRUCTORS WEST COAST\nMYERS & SONS CONSTRUCTION \nSECURITY PAVING COMPANY\nAMES Construction, Inc.\nORTIZ ENTERPRISES, INC."},"5,6,7,8,11,12"]
["NILES ROCK TRANSPORT INC",43,{"$f":"'[1]Construction Worksheet'!AI25","v":140705},"F",1,{"$f":"FetchComment(E206)","v":"05-1H0604"},1,{"$f":"FetchComment(G206)","v":"TEICHERT AND SON"},5]
["NITTA EROSION CONTROL",-4142,{"$f":"'[1]Construction Worksheet'!AI36","v":47323.8},"F",3,{"$f":"FetchComment(E207)","v":"01-0G4304\n04-0J5604\n03-0J8804"},3,{"$f":"FetchComment(G207)","v":"REGE CONSTRUCTION INC\nMYERS & SONS CONSTRUCTION INC\nNeil's Controlled Blast\n"},"1,3,4"]
["Norcal General Construction",-4142,{"$f":"'[1]Construction Worksheet'!AM97","v":898389},"M",1,{"$f":"FetchComment(E208)","v":""},1,{"$f":"FetchComment(G208)","v":"Suyat, Christian@DOT:\nNorcal General Construction"},4]
["PRIME SUPPLY 1",33,{"$f":"'[1]Construction Worksheet'!AI43","v":6049.29},"F",2,{"$f":"FetchComment(E209)","v":"01-0G4304\n01-0C4504"},2,{"$f":"FetchComment(G209)","v":"REGE CONSTRUCTION INC\nMERCER-FRASER COMPANY"},1]
["S. KWOK ENGINEERS",-4142,{"$f":"'[1]Construction Worksheet'!AM105","v":123100},"M",2,{"$f":"FetchComment(E210)","v":"04-2A3324\n04-3J0504"},2,{"$f":"FetchComment(G210)","v":"BAY CITIES PAVING & GRADING INC\nTENNYSON ELECTRIC INC"},4]
["SRK ENGINEERING INC",-4142,{"$f":"'[1]Construction Worksheet'!AI50","v":2400027},"F",1,{"$f":"FetchComment(E211)","v":"08-1C8504"},1,{"$f":"FetchComment(G211)","v":"GRANITE CONSTRUCTION"},8]
["TRAFFIC LOOPS CRACKFILLING INC",-4142,{"$f":"'[1]Construction Worksheet'!AI66","v":2971650},"F",9,{"$f":"FetchComment(E212)","v":"05-1H0604\n06-0Q9204\n06-0U4204\n08-1G5504\n12-0Q6404\n06-0U5204\n04-1J9704\n06-0T3504\n11-411404"},9,{"$f":"FetchComment(G212)","v":"TEICHERT AND SON\nGRIFFITH-ATKINSON JV\nSECURIOTY PAVING COMPANY INC\nRV CONCRETE \nCALPROMAX ENGINEERING INC\nGranite Rock Company\nGranite Construction Company\nCAL VALLEY CONSTRUCTION, INC.\nDesilva gates"},"4,5,6,8,11,12"]
[]
[]
["Other",null,"Dollars","M/F","Count of Contracts","Contract Numbers","Count of Primes","Prime names","Districts"]
[]
["ADH TECHNICAL SERVICES",-4142,{"$f":"'[1]Construction Worksheet'!AU9","v":95545},"M",2,{"$f":"FetchComment(E217)","v":"01-0B6204\n01-0C6604"},2,{"$f":"FetchComment(G217)","v":"CALIFORNIA HIGHWAY CONSTRUCTION GROUP\nS.T. RHOADES CONSTRUCTION INC"},1]
[]
[]
[]
["Non Minority Women","Column1","Dollars","M/F","Count of Contracts","Contract Numbers","Count of Primes","Prime names","Districts"]
["ACTION SWEEPING SERVICES INC",43,{"$f":"'[1]Construction Worksheet'!AQ11","v":114500},"F",3,{"$f":"FetchComment(E222)","v":"01-0G33U4\n03-1H8404\n04-2K8404"},2,{"$f":"FetchComment(G222)","v":"O.C. JONES & SONS INC\nGRANITE CONSTRUCTION COMPANY"},"1.3.4"]
["AMERICAN TRAFFIC SAFETY",-4142,{"$f":"'[1]Construction Worksheet'!AQ15","v":518859.9},"F",1,{"$f":"FetchComment(E223)","v":"10-1C5004"},1,{"$f":"FetchComment(G223)","v":"SECURITY PAVING COMPANY"},10]
["AURORA INDUSTRIAL HYGIENE",-4142,{"$f":"'[1]Construction Worksheet'!AQ30","v":11744},"F",5,{"$f":"FetchComment(E224)","v":"01-0G33U4\n07-317304\n10-1E5314\n07-260804\n04-2K8404"},3,{"$f":"FetchComment(G224)","v":"O.C. JONES & SONS INC\nPETERSON CHASE GENERAL ENGINEERING\nPOWELL CONSTRUCTORS"},"1,4,7,10"]
["AVILA TRAFFIC SAFETY",-4142,{"$f":"'[1]Construction Worksheet'!AQ43","v":1275288.3999999999},"F",9,{"$f":"FetchComment(E225)","v":"05-1F4904\n05-1F5004\n05-1E0104\n06-442554\n06-0S5104\n05-1F9204\n05-1N3504\n09-366604\n06-0U79U4"},9,{"$f":"FetchComment(G225)","v":"SOUZA ENGINEERING CONTRACTING\nCALPORTLAND CONSTRUCTON\nSPECIALTY CONSTRUCTION INC\nGRANITE CONSTRUCTION COMPANY\nGRIFFITH COMPANY\nDISNEY CONSTRUCTION INC\nFBD VANGUARD CONSTRUCTION,  INC.\nEVERLEVEL HOLDINGS, LLC\nSPECTRUM CONSTRUCTION GROUP,   INC."},"5,6,9"]
["B. L. EQUIPMENT RENTAL ",-4142,{"$f":"'[1]Construction Worksheet'!AQ50","v":62400},"F",2,{"$f":"FetchComment(E226)","v":"10-1C0404\n10-1C1704"},1,{"$f":"FetchComment(G226)","v":"TEICHERT & SON"},10]
["BT TRUCKING INC",43,{"$f":"'[1]Construction Worksheet'!AQ63","v":7671819.4000000004},"F",7,{"$f":"FetchComment(E227)","v":"07-302404\n05-1E0104\n06-0Q9204\n10-1C1704\n06-0X5204\n08-1C0824\n05-1N3504"},7,{"$f":"FetchComment(G227)","v":"GRANITE CONSTRUCTION COMPANY\nSPECIALTY CONSTRUCTION INC\nGRIFFITH-ATKINSON JV\nTEICHERT & SON INC \nGRIFFITH COMPANY\nFISHER SAND & GRAVEL CO\nFBD VANGUARD CONSTRUCTION,  INC."},"5,6,7,8,10"]
["CES",-4142,{"$f":"'[1]Construction Worksheet'!AQ70","v":128425},"F",2,{"$f":"FetchComment(E228)","v":"11-429704\n08-1C0824"},2,{"$f":"FetchComment(G228)","v":"SELECT ELECTRIC\nFISHER SAND & GRAVEL CO"},"8,11"]
["CMC TRAFFIC CONTROL",-4142,{"$f":"'[1]Construction Worksheet'!AQ77","v":163604},"F",3,{"$f":"FetchComment(E229)","v":"04-4J4204\n04-3J8904\n04-0J4704"},3,{"$f":"FetchComment(G229)","v":"MAGGIORA & GHILOTTI INC\nBay Area LighWorks, Inc.\nPAL GENERAL ENGINEERING INC"},4]
["COLUMBIA ELECTRIC INC",33,{"$f":"'[1]Construction Worksheet'!AQ92","v":3248780},"F",3,{"$f":"FetchComment(E230)","v":"04-3J7004\n04-4J4504\n04-4J7304"},3,{"$f":"FetchComment(G230)","v":"FBD VANGUARD CONSTRUCTION INC\nGHILOTTI BROS INC\nTEICHERT AND SON INC"},4]
["CONSTRUCTION SURVEY INC",-4142,{"$f":"'[1]Construction Worksheet'!AQ98","v":8000},"F",1,{"$f":"FetchComment(E231)","v":"04-4J4504"},1,{"$f":"FetchComment(G231)","v":"GHILOTTI BROS INC"},4]
["CONTERA CONSTRUCTION COMPANY",-4142,{"$f":"'[1]Construction Worksheet'!AQ105","v":21932466},"F",1,{"$f":"FetchComment(E232)","v":"08-1C0824"},1,{"$f":"FetchComment(G232)","v":"FISHER SAND & GRAVEL CO"},8]
["COOPER ENGINEERING",-4142,{"$f":"'[1]Construction Worksheet'!AQ117","v":4602093},"F",3,{"$f":"FetchComment(E233)","v":"12-0P0304\n07-332604\n08-1E0604"},3,{"$f":"FetchComment(G233)","v":"AMERICAN CIVIL CONSTRUCTORS\nCHUMO CONSTRUCTION INC\nSULLY-MILLER CONTRACTING COMPANY"},"7,8,12"]
["DEES BURKE ENGINEERING",-4142,{"$f":"'[1]Construction Worksheet'!AQ134","v":5449424.7000000002},"F",12,{"$f":"FetchComment(E234)","v":"10-1C2804\n01-0F4704\n03-0H4604\n04-160304\n10-1C5004\n03-1F1504\n04-2A3324\n04-2J7204\n03-1H8404\n04-0J5604\n08-1C0824\n03-3H93U4"},10,{"$f":"FetchComment(G234)","v":"SECURITY PAVING COMPANY\nMERCER-FRASER COMPANY\nMYERS & SONS CONSTRUCTION\nCALPORTLAND CONSTRUCTION\nDESILVA GATES CONSTRUCTION\nBAY CITIES PAVING & GRADING INC\nGORDON N BALL INC\nGRANITE CONSTRUCTION COMPANY\nFISHER SNAD & GRAVEL\nTeichert & Son"},"1,3,4,8,10"]
["DIVERSIFIED LANDSCAPE CO",-4142,{"$f":"'[1]Construction Worksheet'!AQ146","v":1281566.1000000001},"F",7,{"$f":"FetchComment(E235)","v":"11-429704\n07-332604\n12-0P94U4\n11-427504\n07-288304\n12-0Q6504\n08-1L5904"},5,{"$f":"FetchComment(G235)","v":"SELECT ELECTRIC\nCHUMO CONSTRUCTION INC\nGRANITE CONSTRUCTION\nHMS CONSTRUCTION INC\nInternational Line Builders, Inc. dba ILB Electric\n "},"7,8,11,12"]
["HILLSIDE DRILLING",-4142,{"$f":"'[1]Construction Worksheet'!AQ152","v":3546631},"F",2,{"$f":"FetchComment(E236)","v":"06-442554\n04-0A7714"},2,{"$f":"FetchComment(G236)","v":"GRANIITE CONSTRUCTION COMPANY\nGOLDEN STATE BRIDGE, INC."},"4,6"]
["J & M LAND RESTORATION INC",-4142,{"$f":"'[1]Construction Worksheet'!AQ169","v":895298.34},"F",8,{"$f":"FetchComment(E237)","v":"05-1F4904\n10-0L8704\n10-1C1704\n06-442554\n03-1H0104\n06-0U1004\n06-0U4204\n06-0U79U4"},5,{"$f":"FetchComment(G237)","v":"SOUZA ENGINEERING CONTRACTING\nSECURITY PAVING COMPANY\nTEICHERT & SON\nGRANITE CONSTRUCTION COMPANY\nROAD AND HIGHWAY BUILDERS LLC\n"},"3,5,6,10"]
["JAHN ENGINEERING INC",-4142,{"$f":"'[1]Construction Worksheet'!AQ176","v":7200},"F",3,{"$f":"FetchComment(E238)","v":"04-4J7304\n06-442554\n06-0U79U4"},3,{"$f":"FetchComment(G238)","v":"TEICHER AND SON\nGRANITE CONSTRUCTION COMPANY\nST. FRANCIS ELECTRIC, LLC"},"4,6"]
["JARRETT FOUNDATIONS INC",-4142,{"$f":"'[1]Construction Worksheet'!AQ187","v":2729560},"F",5,{"$f":"FetchComment(E239)","v":"10-1C2804\n01-0F4704\n03-0H4604\n05-1F5004\n10-0L8704"},4,{"$f":"FetchComment(G239)","v":"SECURITY PAVING COMPANY\nMERCER FRASER COMPANY\nMYERS & SONS CONSTRUCTION\nCALPORTLAND CONSTRUCTION"},"1,3,5,10"]
["K & K CONSTRUCTION SUPPLY INC",33,{"$f":"'[1]Construction Worksheet'!AQ196","v":4276.87},"F",2,{"$f":"FetchComment(E240)","v":"05-1H0604\n03-1H8404"},2,{"$f":"FetchComment(G240)","v":"TEICHERT AND SON\nGRANITE CONSTRUCTION COMPANY"},"3,5"]
["KELLEY EROSION CONTROL",-4142,{"$f":"'[1]Construction Worksheet'!AQ201","v":93892.6},"F",2,{"$f":"FetchComment(E241)","v":"03-2H0004\n03-1H8404"},2,{"$f":"FetchComment(G241)","v":"NEIL'S CONTROLLED BLASTING LP\nGRANITE CONSTRUCTION COMPANY"},3]
["KITTY'S SWEEPING",43,{"$f":"'[1]Construction Worksheet'!AQ210","v":158690},"F",2,{"$f":"FetchComment(E242)","v":"04-0J5604\n11-427504"},2,{"$f":"FetchComment(G242)","v":"MYERS & SONS CONSTRUCTION INC\nHMS CONSTRUCTION INC"},"4,11"]
["KRITZ EXCAVATING & TRUCKING",-4142,{"$f":"'[1]Construction Worksheet'!AQ222","v":171524},"F",2,{"$f":"FetchComment(E243)","v":"05-1F4904\n05-1J4704"},2,{"$f":"FetchComment(G243)","v":"SOUZA ENGINEERING CONTRACTING\nFEC FUTURE CONTRACTORS AND     ENGINEERS, INC. "},5]
["LA STEEL SERVICES IN",-4142,{"$f":"'[1]Construction Worksheet'!AQ234","v":2158794.23},"F",5,{"$f":"FetchComment(E244)","v":"08-1G0104\n07-291404\n08-1F7304\n08-0E33U4\n11-411404"},4,{"$f":"FetchComment(G244)","v":"GRANITE CONSTRUCTION COMPANY\nSTACY AND WITBECK\nSECURITY PAVING COMPANY\nAMES Constructions, Inc"},"7,8,11"]
["LIGHT SPEED RESOURCES",33,{"$f":"'[1]Construction Worksheet'!AQ244","v":929439.7300000001},"F",6,{"$f":"FetchComment(E245)","v":"10-0X5204\n10-1E5314\n04-2A3324\n06-0U4204\n04-3J0504\n06-0T3504"},6,{"$f":"FetchComment(G245)","v":"GEORGE REED INC\nO.C. JONES & SONS INC\nBAY CITIES PAVING & GRADING INC\nSECURITY PAVING COMPANY\nTENNYSON ELECTRIC INC\nCAL VALLEY CONSTRUCTION, INC."},"4,6,10"]
["LINDY'S COLD PLANNING",-4142,{"$f":"'[1]Construction Worksheet'!AQ251","v":1622707.46},"F",4,{"$f":"FetchComment(E246)","v":"07-302404\n08-1C8504\n11-419304\n08-0E33U4"},3,{"$f":"FetchComment(G246)","v":"GRANITE CONSTRUCTION COMPANY\nHAZARD CONSTRUCTION COMPANY\nAMES Construction, Inc."},"7,8,11"]
["LOWERS WELDING & FABRICATION",-4142,{"$f":"'[1]Construction Worksheet'!AQ256","v":560990},"F",1,{"$f":"FetchComment(E247)","v":"07-291404"},1,{"$f":"FetchComment(G247)","v":"STACY AND WITBECK INC"},7]
["MCW TRAFFIC CONTROL",-4142,{"$f":"'[1]Construction Worksheet'!AQ261","v":30075},"F",1,{"$f":"FetchComment(E248)","v":"10-1C3704"},1,{"$f":"FetchComment(G248)","v":"MIDSTATE BARRIER INC"},10]
["MOUNTAINVIEW BIOLOGICAL",-4142,{"$f":"'[1]Construction Worksheet'!AQ271","v":58125.599999999999},"F",1,{"$f":"FetchComment(E249)","v":"08-1G0104"},1,{"$f":"FetchComment(G249)","v":"GRANITE CONSTRUCTION COMPANY"},8]
["NATURAL RESOURCES MANAGEMENT",-4142,{"$f":"'[1]Construction Worksheet'!AQ276","v":11936.7},"F",1,{"$f":"FetchComment(E250)","v":"01-0F6804"},1,{"$f":"FetchComment(G250)","v":"R BROWN CONSTRUCTION COMPANY INC"},1]
["PAVEMENT MANAGEMENT",-4142,{"$f":"'[1]Construction Worksheet'!AQ282","v":26600},"F",3,{"$f":"FetchComment(E251)","v":"04-269804\n05-1J4704\n05-1N3504"},2,{"$f":"FetchComment(G251)","v":"FBD VANGUARD CONSTRUCTION\nFEC FUTURE CONTRACTORS AND     ENGINEERS, INC.\n"},"4, 5"]
["PAYCO SPECIALTIES",-4142,{"$f":"'[1]Construction Worksheet'!AQ301","v":863830.85},"F",10,{"$f":"FetchComment(E252)","v":"11-429704\n11-419304\n12-0P0304\n11-080284\n12-0M82U4\n11-424704\n11-427504\n11-412204\n11-411404\n11-4116U4"},8,{"$f":"FetchComment(G252)","v":"SELECT ELECTRIC\nHAZARD CONSTRUCTION COMPANY\nAMERICAN CIVIL CONSTRUCTORS WEST COAST\nSPECTRUM CONSTRUCTION GROUP\nPAL GENERAL ENGINEERING INC\nHMS CONSTRUCTION INC\nDESILVA GATES CONSTRUCTION \nGRANITE CONSTRUCTION COMPANY"},"11,12"]
["PC & N CONSTRUCTION",33,{"$f":"'[1]Construction Worksheet'!AQ310","v":171916},"F",4,{"$f":"FetchComment(E253)","v":"04-0J5304\n04-2J7204\n03-2H1104\n06-0U79U4"},3,{"$f":"FetchComment(G253)","v":"O.C. JONES & SONS INC\nGORDON N BALL INC\nSPECTRUM CONSTRUCTION GROUP,   INC.   "},"3,4,6"]
["PINNACLE GRINDING",-4142,{"$f":"'[1]Construction Worksheet'!AQ314","v":4200},"F",1,{"$f":"FetchComment(E254)","v":"01-0G4304"},1,{"$f":"FetchComment(G254)","v":"REGE CONSTRUCTION INC"},1]
["Price Stage Line, LLC",33,{"$f":"'[1]Construction Worksheet'!AQ319","v":2538900},"F",1,{"$f":"FetchComment(E255)","v":"Suyat, Christian@DOT:\n06-360244"},1,{"$f":"FetchComment(G255)","v":"Suyat, Christian@DOT:\nSecurity Paving Company"},6]
["Quality Hydroseeding & Restoration ",-4142,{"$f":"'[1]Construction Worksheet'!AQ324","v":44739},"F",1,{"$f":"FetchComment(E256)","v":"Suyat, Christian@DOT:\n08-0E33U4"},1,{"$f":"FetchComment(G256)","v":"Suyat, Christian@DOT:\nAMES Constructions, Inc."},8]
["ROLL N' ROCK CONSTRUCTION",-4142,{"$f":"'[1]Construction Worksheet'!AQ345","v":1733591.5},"F",9,{"$f":"FetchComment(E257)","v":"01-0G4304\n10-1C2804\n01-0C5704\n01-0F4704\n01-0G33U4\n01-0C6604\n01-0C4504\n03-0H7204\n02-4F2204"},7,{"$f":"FetchComment(G257)","v":"SECURITY PAVING COMPANY\nREGE CONSTRUCTION INC\nMERCER FRASER COMPANY\nO.C. JONES & SONS\nS.T. RHOADES CONSTRCTION INC\nHIGHWAY SPECIALTY COMPANY INC\nMCCULLOUGH CONSTRUCTION INC"},"1,2,3,10"]
["ROUCH REBAR INC",-4142,{"$f":"'[1]Construction Worksheet'!AQ351","v":621048.06000000006},"F",1,{"$f":"FetchComment(E258)","v":"09-360704"},1,{"$f":"FetchComment(G258)","v":"POWELL CONSTRUCTORS INC"},9]
["RUPERT CONSTRUCTION SUPPLY",33,{"$f":"'[1]Construction Worksheet'!AQ366","v":875314.54999999993},"F",8,{"$f":"FetchComment(E259)","v":"01-0F4704\n03-0H4604\n04-2J7204\n09-360704\n04-0J5604\n08-0E33U4\n04-4G2104\n03-3H93U4"},6,{"$f":"FetchComment(G259)","v":"MERCER FRASER COMPANY\nMYERS & SONS CONSTRUCTION LLC\nGORDON N BALL INC\nPOWELL CONSTRUCTORS INC\nAMES Construction\nTeichert & Son."},"1,3,4,8,9"]
["SAFEGUARD FENCE",33,{"$f":"'[1]Construction Worksheet'!AQ372","v":205000},"F",1,{"$f":"FetchComment(E260)","v":"09-213414"},1,{"$f":"FetchComment(G260)","v":"ALCORN FENCE COMPANY"},9]
["SCHOTKA CONSTRUCTION",-4142,{"$f":"'[1]Construction Worksheet'!AQ389","v":188911},"F",4,{"$f":"FetchComment(E261)","v":"04-2G4604\n04-2A3324\n04-2J7204\n04-4J4204"},4,{"$f":"FetchComment(G261)","v":"CALIFORNIA HIGHWAY CONSTRUCTION\nBAY CITIES PAVING & GRADING INC\nGORDON N BALL INC\nMAGGIORA & GHILOTTI"},4]
["SO CAL TRAFFIC",-4142,{"$f":"'[1]Construction Worksheet'!AQ395","v":883160},"F",1,{"$f":"FetchComment(E262)","v":"08-1C8504"},1,{"$f":"FetchComment(G262)","v":"GRANITE CONSTRUCTION COMPANY"},8]
["SUPER SEAL & STRIPE",-4142,{"$f":"'[1]Construction Worksheet'!AQ410","v":253824},"F",11,{"$f":"FetchComment(E263)","v":"05-1F4904\n05-1H0604\n05-1E0104\n09-360704\n05-1F9204\n10-0Y6004\n04-3J8904\n05-1K1004\n05-1J4704\n05-1N3504\n09-366604"},11,{"$f":"FetchComment(G263)","v":"SOUZA ENGINEERING CONTRACTING\nTEICHERT AND SON\nSPECIALTY CONSTRUCTION INC\nPOWELL CONSTRUCTORS IN\nDISNEY CONSTRUCTION INC\nIBARRA GENERAL ENGINEERING INC\nBay Area Light Works, Inc.\nLee Wilson Electric Company, Inc.\nFEC FUTURE CONTRACTORS AND     ENGINEERS, INC. \nFBD VANGUARD CONSTRUCTION,  INC.\nEVERLEVEL HOLDINGS, LLC "},"4,5,9,10"]
["SUPERIOR HYDROSEEDING",-4142,{"$f":"'[1]Construction Worksheet'!AQ417","v":24732},"F",2,{"$f":"FetchComment(E264)","v":"04-3J0504\n04-4J4204"},2,{"$f":"FetchComment(G264)","v":"TENNYSON ELECTRIC INC\nMAGGIORIA & GHILOTTI INC"},4]
["T & S DVBE",33,{"$f":"'[1]Construction Worksheet'!AQ438","v":1703607.5},"F",16,{"$f":"FetchComment(E265)","v":"01-0B6204\n01-0F6804\n01-0G33U4\n10-1E5314\n03-1H8704\n04-0J5304\n03-2H0004\n03-1H8404\n04-2K8404\n04-3J0504\n04-0A7714\n04-4G2104\n01-0H4604\n03-0J8804\n03-2H2404\n03-3H93U4"},11,{"$f":"FetchComment(G265)","v":"R BROWN CONSTRUCTION COMPANY INC\nCALIFORNIA HIGHWAY CONSTRUCTION GROUP\nO.C. JONES & SONS INC\nAPEX FENCE CO INC\nNEIL'S CONTROLLED BLASTING LP\nGRANITE CONSTRUCTION COMPANY\nTENNYSON ELECTRIC INC\nGOLDEN STATE BRIDGE, INC.\nGORDON N. BALL, INC.\nTeichert & Son\nLamon Construction\n"},"1,3,4,10"]
["TAYLOR DRILLING",-4142,{"$f":"'[1]Construction Worksheet'!AQ443","v":12500},"F",1,{"$f":"FetchComment(E266)","v":"06-442554"},1,{"$f":"FetchComment(G266)","v":"GRANITE CONSTRUCTION COMPANY"},6]
["TRI VALLEY WATER TRUCKS INC",43,{"$f":"'[1]Construction Worksheet'!AQ452","v":826410},"F",2,{"$f":"FetchComment(E267)","v":"04-269804\n04-1J9704"},2,{"$f":"FetchComment(G267)","v":"FBD VANGUARD CONSTRUCTION\nGranite Rock\n"},4]
["TRIUMPH GEO-SYNTHETICS INC",33,{"$f":"'[1]Construction Worksheet'!AQ468","v":652859.17000000004},"F",7,{"$f":"FetchComment(E268)","v":"05-1F4904\n05-1H0604\n11-080284\n05-1F9204\n04-2K8404\n07-288304\n08-0E33U4"},7,{"$f":"FetchComment(G268)","v":"SOUZA ENGINEERING CONTRACTING\nTEICHERT AND SON\nSPECTRUM CONSTRUCTION GROUP\nDISNEY CONSTRUCTION INC\nO.C. JONES & SONS INC\nCHUMO CONSTRUCTION INC\nAMES Construction, Inc."},"4,5,7,8,11"]
["TYRRELL RESOURCES",-4142,{"$f":"'[1]Construction Worksheet'!AQ485","v":1106355.5},"F",12,{"$f":"FetchComment(E269)","v":"10-1C2804\n01-0F4704\n01-0G33U4\n03-0H4604\n04-160304\n06-0U4204\n04-2K8404\n06-360244\n03-2H1104\n03-2H2404\n03-3H93U4\n03-2H6304"},9,{"$f":"FetchComment(G269)","v":"SECURITY PAVING COMPANY\nMERCER FRASER COMPANY\nO.C. JONES & SONS INC\nMYERS & SONS CONSTRUCTION LLC\nVIKING CONSTRUCTION COMPANY\nSecurity Paving Company, inc\nLamon Construction\nTeichery & Sons, Inc\nGranite Construction\n"},"1,3,4,6,10"]
["VALLEY DISPATCH INC",43,{"$f":"'[1]Construction Worksheet'!AQ492","v":555012.78},"F",1,{"$f":"FetchComment(E270)","v":"07-302404"},1,{"$f":"FetchComment(G270)","v":"GRANITE CONSTRUCTION COMPANY"},7]
["VERIDICO GROUP INC",-4142,{"$f":"'[1]Construction Worksheet'!AQ497","v":15645},"F",1,{"$f":"FetchComment(E271)","v":"03-0H7204"},1,{"$f":"FetchComment(G271)","v":"HIGHWAY SPECIALTY COMPANY"},3]
["VISTA STEEL COMPANY",-4142,{"$f":"'[1]Construction Worksheet'!AQ505","v":120709.41},"F",1,{"$f":"FetchComment(E272)","v":"07-302404"},1,{"$f":"FetchComment(G272)","v":"GRANITE CONSTRUCTION COMPANY"},7]
["WATER COMPONENTS & BUILDING ",33,{"$f":"'[1]Construction Worksheet'!AQ517","v":941602.92999999993},"F",8,{"$f":"FetchComment(E273)","v":"01-0F4704\n10-1E5314\n01-0C4504\n04-0J5304\n04-2J7204\n04-4J4204\n04-4G2104\n03-2H1104"},4,{"$f":"FetchComment(G273)","v":"MERCER FRASER COMPANY\nO.C. JONES & SONS INC\nGORDON N BALL INC\nMAGGIORA & GHILOTTI INC"},"1,4,10"]
["WEST COAST WATER & TRUCKING",43,{"$f":"'[1]Construction Worksheet'!AQ523","v":124800},"F",2,{"$f":"FetchComment(E274)","v":"Suyat, Christian@DOT:\n03-0H4604\n03-2H1104"},2,{"$f":"FetchComment(G274)","v":"MYERS & SONS CONSTRUCTION LLC\nO.C. Jones & Sons, Inc."},3]
[]
[]
[]
[{"$f":"COUNTIF(B78:B137, \"33\")","v":6},{"$f":"COUNTIF(B67:B277, \"33\")","v":27}]
[null,{"$f":"COUNTIF(B67:B277, \"43\")","v":24}]
[{"$f":"COUNTIF(B78:B137, \"-4142\")","v":40},{"$f":"COUNTIF(B67:B277, \"-4142\")","v":129}]
["Prime Name",null,"Number of Contracts","Contract #s","Prime Name","Number of Contracts","Contract #s","Prime Name","Number of Contracts","Contract #s"]
["A. TEICHERT & SON INC",null,5,{"$f":"FetchComment(C282)","v":"10-1C0404\n05-1H0604\n04-4J7304\n10-1C1704\n03-3H93U4"},"GOLDEN STATE BRIDGE, INC.                                                                                                  ",1,{"$f":"FetchComment(F282)","v":"Suyat, Christian@DOT:\n04-0A7714"},"R BROWN CONSTRUCTION COMPANY ",1,{"$f":"FetchComment(I282)","v":"01-0F6804"}]
["AGEE CONSTRUCTION CORPORATION",null,1,{"$f":"FetchComment(C283)","v":"10-1J3004"},"GORDON N BALL INC",3,{"$f":"FetchComment(F283)","v":"04-2J7204\n04-4G2104\n05-1K1304"},"REGE CONSTRUCTION INC",1,{"$f":"FetchComment(I283)","v":"01-0G4304"}]
["ALCORN FENCE COMPANY",null,1,{"$f":"FetchComment(C284)","v":"09-213414"},"GRANITE CONSTRUCTION COMPANY",11,{"$f":"FetchComment(F284)","v":"08-1G0104\n06-0X0404\n07-302404\n08-1C8504\n06-442554\n12-0P94U4\n06-0U1004\n03-1H8404\n06-0U5204\n01-0H4604\n06-0U79U4"},"ROAD AND HIGHWAY BUILDERS LLC",1,{"$f":"FetchComment(I284)","v":"03-1H0104"}]
["ALFARO COMMUNICATIONS          CONSTRUCTION,INC                                                                            ",null,1,{"$f":"FetchComment(C285)","v":"Suyat, Christian@DOT:\n12-0Q3104"},"GRANITE ROCK COMPANY",2,{"$f":"FetchComment(F285)","v":"04-3J7104\n04-1J9704\n"},"RV CONCRETE ",1,{"$f":"FetchComment(I285)","v":"08-1G5504"}]
["A.M. CONCRETE, INC.                                                                                                        ",null,1,{"$f":"FetchComment(C286)","v":"Suyat, Christian@DOT:\n05-1H8504"},"GRIFFITH COMPANY ",2,{"$f":"FetchComment(F286)","v":"06-0X5204\n06-0S5104"},"S & B ENGINEERING INC",1,{"$f":"FetchComment(I286)","v":"11-424604"}]
["AMES CONSTRUCTION, INC.                                                                                                    ",null,1,{"$f":"FetchComment(C287)","v":"Suyat, Christian@DOT:\n08-0E33U4"},"GRIFFITH-ATKINSON JV",1,{"$f":"FetchComment(F287)","v":"06-0Q9204"},"S.T. RHOADES CONSTRUCTION INC",1,{"$f":"FetchComment(I287)","v":"01-0C6604"}]
["AMERICAN CIVIL CONSTRUCTORS WEST COAST",null,3,{"$f":"FetchComment(C288)","v":"12-0P0304\n12-0Q7904\n03-0J9004"},"HAZARD CONSTRUCTION COMPANY",1,{"$f":"FetchComment(F288)","v":"11-419304"},"SECURITY PAVING COMPAY INC",7,{"$f":"FetchComment(I288)","v":"10-1C2804\n07-303904\n10-0L8704\n10-1C5004\n06-0U4204\n08-1F7304\n06-360244"}]
["AMERICA PACIFIC CONSTRUCTION",null,1,{"$f":"FetchComment(C289)","v":"04-4J0804"},"HIGHWAY SPECIALTY COMPANY INC",1,{"$f":"FetchComment(F289)","v":"03-0H7204"},"SELECT ELECTRIC INC",2,{"$f":"FetchComment(I289)","v":"11-429704\n08-0G7904"}]
["APEX FENCE CO INC",null,1,{"$f":"FetchComment(C290)","v":"03-1H8704"},"HMS CONSTRUCTION INC",1,{"$f":"FetchComment(F290)","v":"11-427504"},"SOUZA ENGINEERING CONSTRACTING",1,{"$f":"FetchComment(I290)","v":"05-1F4904"}]
["BAY AREA LIGHTWORKS, INC                                                                                                   ",null,1,{"$f":"FetchComment(C291)","v":"Suyat, Christian@DOT:\n04-3J8904"},"IBARRA GENERAL ENGINEERING INC",1,{"$f":"FetchComment(F291)","v":"10-0Y6004"},"SPECIALIZED PAVEMENT MARKING INC",1,{"$f":"FetchComment(I291)","v":"05-1K8604"}]
["BAY CITIES PAVING & GRADING INC",null,1,{"$f":"FetchComment(C292)","v":"04-2A3324"},"INTERNATIONAL LINE BUILDERS, INC. DBA ILB ELECTRIC                                                                       ",2,{"$f":"FetchComment(F292)","v":"Suyat, Christian@DOT:\n12-0Q6504\n08-1L5904"},"SPECIALTY CONSTRUCTION INC",1,{"$f":"FetchComment(I292)","v":"05-1E0104"}]
["BEADOR CONSTRUCTION COMPANY,   INC.                                                                                        ",null,1,{"$f":"FetchComment(C293)","v":"Suyat, Christian@DOT:\n12-0S0404"},"LAMON CONSTRUCTION                                                                                                         ",1,{"$f":"FetchComment(F293)","v":"Suyat, Christian@DOT:\n03-2H2404\n"},"SPECTRUM CONSTRUCTION GROUP INC",3,{"$f":"FetchComment(I293)","v":"11-080284\n12-0M82U4\n11-411404"}]
["BUSH ENGINEERING INC",null,2,{"$f":"FetchComment(C294)","v":"06-0Y0304\n06-0U0404"},"LEE WILSON ELECTRIC COMPANY,   INC.                                                                                        ",1,{"$f":"FetchComment(F294)","v":"Suyat, Christian@DOT:\n05-1K1004"},"ST. FRANCIS ELECTRIC, LLC                                                                                                  ",3,{"$f":"FetchComment(I294)","v":"Suyat, Christian@DOT:\n04-3K3104\n04-3K3304\n04-0J4704"}]
["CAL VALLEY CONSTRUCTION, INC.                                                                                              ",null,1,{"$f":"FetchComment(C295)","v":"Suyat, Christian@DOT:\n06-0T3504"},"LOS ANGELES ENGINEERING INC",1,{"$f":"FetchComment(F295)","v":"07-318804"},"STACY AND WITBECK INC",1,{"$f":"FetchComment(I295)","v":"07-291404"}]
["CALIFORNIA ENGINEERING CONTRACTORS INC",null,1,{"$f":"FetchComment(C296)","v":"03-3F5604"},"MAGGIORA & GHILOTTI INC",1,{"$f":"FetchComment(F296)","v":"04-4J4204"},"STANCE CONSTRUCTION COMPANY                                                                                                ",1,{"$f":"FetchComment(I296)","v":"Suyat, Christian@DOT:\n07-2055C4"}]
["CALIFORNIA HIGHWAY CONSTRUCITON",null,2,{"$f":"FetchComment(C297)","v":"04-2G4604\n01-0B6204"},"MATICH COPRPORATION",1,{"$f":"FetchComment(F297)","v":"08-1E8404"},"SULLY-MILLER CONTRACTING COMPANY",1,{"$f":"FetchComment(I297)","v":"08-1E0604\n"}]
["CALPROMAX ENGINEERING INC",null,1,{"$f":"FetchComment(C298)","v":"12-0Q6404"},"MCCULLOUGH CONSTGRUCTION INC",2,{"$f":"FetchComment(F298)","v":"02-4F2204\n01-0G2104\n"},"TENNYSON ELECTRIC INC",1,{"$f":"FetchComment(I298)","v":"04-3J0504"}]
["CALPORTLAND CONSTRUCTION",null,1,{"$f":"FetchComment(C299)","v":"05-1F5004"},"MERCER FRASER COMPANY",3,{"$f":"FetchComment(F299)","v":"01-0C5704\n01-0F4704\n01-0C4504\n"},"VIKING CONSTRUCTION COMPANY",1,{"$f":"FetchComment(I299)","v":"04-160304"}]
["CAL STRIPE, INC.                                                                                                           ",null,1,{"$f":"FetchComment(C300)","v":"Suyat, Christian@DOT:\n05-1K8504"},"MIDSTATE BARRIER INC",1,{"$f":"FetchComment(F300)","v":"10-1C3704"},"YAKAR                                                                                                                      ",1,{"$f":"FetchComment(I300)","v":"07-4V0104"}]
["CERTIFIED COATINGS COMPANY",null,2,{"$f":"FetchComment(C301)","v":"05-1C4204\n04-2J8014\n"},"MYERS & SONS CONSTRUCTION LLC",3,{"$f":"FetchComment(F301)","v":"03-0H4604\n08-1F1434\n04-0J5604"},null,null,{"$f":"FetchComment(I301)","v":""}]
["CHUMO CONSTRUCTION INC",null,2,{"$f":"FetchComment(C302)","v":"07-332604\n07-288304"},"NEIL'S CONTROLLED BLASTING LP",2,{"$f":"FetchComment(F302)","v":"03-2H0004\n03-0J8804"},null,null,{"$f":"FetchComment(I302)","v":""}]
["DANNY C. HUBBS CONSTRUCTION, INC.                                                                                        ",null,1,{"$f":"FetchComment(C303)","v":"Suyat, Christian@DOT:\n09-367704"},"NEWTON CONSTRUCTION MANAGEMENT INC",1,{"$f":"FetchComment(F303)","v":"05-1H0204"},null,null,{"$f":"FetchComment(I303)","v":""}]
["DESILVA GATES CONSTRUCTION",null,2,{"$f":"FetchComment(C304)","v":"03-1F1504\n03-2H6304"},"NORCAL GENERAL CONSTRUCTION    CORPORATION                                                                                 ",1,{"$f":"FetchComment(F304)","v":"Suyat, Christian@DOT:\n04-3K3404"},null,null,{"$f":"FetchComment(I304)","v":""}]
["DISNEY CONSTRUCTION",null,1,{"$f":"FetchComment(C305)","v":"05-1F9204"},"O'DONNELL CONSTRUCTION, INC.                                                                                               ",1,{"$f":"FetchComment(F305)","v":"Suyat, Christian@DOT:\n07-4V1004"},null,null,{"$f":"FetchComment(I305)","v":""}]
["DREAMBUILDER CONSTRUCTION COMPANY",null,3,{"$f":"FetchComment(C306)","v":"05-1G9904\n08-1G0004\n08-1J0204"},"O.C. JONES & SONS INC",5,{"$f":"FetchComment(F306)","v":"01-0G33U4\n10-1E5314\n04-0J5304\n04-2K8404\n03-2H1104"},null,null,{"$f":"FetchComment(I306)","v":""}]
["EVERLEVEL HOLDINGS, LLC                                                                                                    ",null,2,{"$f":"FetchComment(C307)","v":"Suyat, Christian@DOT:\n08-0R5704\n09-366604"},"ORTIZ ENTERPRISES, INC.                                                                                                    ",1,{"$f":"FetchComment(F307)","v":"Suyat, Christian@DOT:\n07-293604"},null,null,{"$f":"FetchComment(I307)","v":""}]
["FBD VANGUARD CONSTRUCTION INC",null,5,{"$f":"FetchComment(C308)","v":"04-3J7004\n04-269804\n04-4J3904\n03-4F1714\n05-1N3504"},"PACIFIC INFRASTRUCTURE CONSTRUCTION LLC                                                                            ",1,{"$f":"FetchComment(F308)","v":"Suyat, Christian@DOT:\n10-1C7604"},null,null,{"$f":"FetchComment(I308)","v":""}]
["F D THOMAS INC                                                                                                             ",null,1,{"$f":"FetchComment(C309)","v":"Suyat, Christian@DOT:\n04-2J8024"},"PAL GENERAL ENGINEERING INC",4,{"$f":"FetchComment(F309)","v":"11-418104\n11-424704\n11-412204\n11-4116U4"},null,null,{"$f":"FetchComment(I309)","v":""}]
["FEC FUTURE CONTRACTORS AND     ENGINEERS, INC.                                                                             ",null,1,{"$f":"FetchComment(C310)","v":"Suyat, Christian@DOT:\n05-1J4704"},"PAPICH CONSTRUCTION CO INC",1,{"$f":"FetchComment(F310)","v":"05-1J7104"},null,null,{"$f":"FetchComment(I310)","v":""}]
["FISHER SAND & GRAVEL CO",null,1,{"$f":"FetchComment(C311)","v":"08-1C0824"},"PETERSON CHASE GENERAL ENGINEERING",1,{"$f":"FetchComment(F311)","v":"07-317304"},null,null,{"$f":"FetchComment(I311)","v":""}]
["GEORGE REED INC",null,2,{"$f":"FetchComment(C312)","v":"10-0X5204\n10-462104"},"POWELL CONSTRUCTORS INC",2,{"$f":"FetchComment(F312)","v":"07-260804\n09-360704"},null,null,{"$f":"FetchComment(I312)","v":""}]
["GHILOTTI BROS INC",null,1,{"$f":"FetchComment(C313)","v":"04-4J4504"},"PTM GENERAL ENGINEERING        SERVICES, INC.                                                                              ",1,{"$f":"FetchComment(F313)","v":"Suyat, Christian@DOT:\n04-3K3504"},null,null,{"$f":"FetchComment(I313)","v":""}]
[]
["To see names of prime contractors/contract numbers, place your cursor on comment tab (red triangle)."]
["Caltrans DBE Reports: http://www.dot.ca.gov/hq/bep/reports.htm"]